{"text_format":"1","workbook":"xlsx","n_sheets":3,"sheets":["Budowa","Remont","DANE"],"not_rendered":{"charts":0,"images":0,"macros":1,"external_links":0,"defined_names":4,"comments":0,"pivot_tables":0},"unopened":[],"bounds":{"document_bytes":16777216,"sheet_cells":100000,"rows_first":2000,"rows_last":500,"rows_between":2000,"halvings":0,"cell_chars":16384,"cell_head_chars":4096},"cells_cut":0,"cells_raw":0,"read":"whole","date_system":"1900"}

{"sheet":"Budowa","index":0,"n_rows":139,"n_cols":37,"rows_kept":139,"cut":false,"hidden":false,"merged":[[69,5,69,25],[70,5,70,25],[71,5,71,25],[72,5,72,25],[66,1,66,25],[82,1,82,9],[83,0,83,1],[83,2,83,9],[84,1,84,9],[85,0,85,1],[85,2,85,9],[75,0,76,11],[75,16,76,16],[75,21,76,21],[77,1,77,9],[78,1,78,9],[79,1,79,9],[80,1,80,9],[81,2,81,9],[81,0,81,1],[111,23,111,25],[102,1,102,25],[103,2,103,22],[104,2,104,22],[105,2,105,22],[107,2,107,22],[108,2,108,22],[109,2,109,22],[110,2,110,22],[108,23,108,25],[89,0,89,25],[90,22,90,23],[91,22,91,23],[92,22,92,23],[90,2,90,21],[91,2,91,21],[92,2,92,21],[106,2,106,25],[128,2,128,25],[97,1,97,9],[97,10,97,16],[97,17,97,25],[100,1,100,25],[101,0,101,25],[98,1,98,9],[98,10,98,16],[98,17,98,25],[99,1,99,9],[99,10,99,16],[99,17,99,25],[104,23,104,25],[105,23,105,25],[103,23,103,25],[107,23,107,25],[121,1,121,22],[121,23,121,25],[122,0,122,25],[123,1,123,22],[123,23,123,25],[118,0,118,25],[113,1,113,25],[114,1,114,25],[115,1,115,25],[87,12,87,14],[87,17,87,19],[87,22,87,24],[86,0,87,9],[86,10,87,11],[84,10,84,11],[85,10,85,11],[88,1,88,25],[84,17,84,19],[85,22,85,24],[17,2,17,9],[18,2,18,9],[17,0,18,1],[34,0,34,25],[53,1,53,2],[53,3,53,25],[54,10,54,12],[54,14,54,16],[54,18,54,20],[54,22,54,24],[54,1,54,8],[45,0,46,0],[48,0,54,0],[21,18,21,25],[22,18,22,25],[23,18,23,25],[49,2,49,4],[49,5,49,7],[49,8,49,11],[49,12,49,17],[49,18,49,25],[37,13,38,19],[22,10,22,17],[23,10,23,17],[82,10,82,11],[83,10,83,11],[77,12,77,14],[78,12,78,14],[82,17,82,19],[83,17,83,19],[81,12,81,14],[82,12,82,14],[83,12,83,14],[76,17,76,20],[77,17,77,19],[78,17,78,19],[79,17,79,19],[80,17,80,19],[81,17,81,19],[21,1,21,9],[68,1,68,25],[74,1,74,25],[77,10,77,11],[78,10,78,11],[79,10,79,11],[80,10,80,11],[81,10,81,11],[69,0,69,4],[70,0,70,4],[71,0,71,4],[72,0,72,4],[76,22,76,25],[77,22,77,24],[78,22,78,24],[79,22,79,24],[80,22,80,24],[81,22,81,24],[82,22,82,24],[83,22,83,24],[84,22,84,24],[0,1,0,3],[0,4,0,25],[1,0,1,3],[1,4,1,25],[2,0,2,25],[3,0,3,25],[47,23,47,25],[44,1,44,22],[47,1,47,22],[45,18,45,25],[46,18,46,25],[45,12,45,17],[46,12,46,17],[45,8,45,11],[46,8,46,11],[45,5,45,7],[46,5,46,7],[45,2,45,4],[46,2,46,4],[8,21,8,25],[4,0,4,25],[13,1,13,25],[14,15,15,15],[14,17,14,21],[14,22,14,25],[14,0,15,14],[5,17,6,25],[7,1,7,25],[11,1,11,25],[9,0,9,2],[9,3,9,25],[10,0,10,2],[10,3,10,25],[5,0,6,2],[5,3,6,14],[5,15,6,16],[8,0,8,2],[8,3,8,6],[8,7,8,9],[8,10,8,17],[8,18,8,20],[12,0,12,25],[15,22,15,25],[15,17,15,21],[37,20,38,25],[38,3,38,7],[38,8,38,12],[37,0,38,2],[32,1,32,3],[32,4,32,25],[33,1,33,19],[33,20,33,25],[35,1,35,25],[36,0,36,25],[37,3,37,12],[39,0,39,2],[51,8,51,11],[30,1,30,3],[30,4,30,25],[31,1,31,19],[31,20,31,25],[51,12,51,17],[51,18,51,25],[52,2,52,4],[52,5,52,7],[52,8,52,11],[52,12,52,17],[52,18,52,25],[39,3,39,7],[48,2,48,4],[48,5,48,7],[48,8,48,11],[48,12,48,17],[43,1,43,25],[44,23,44,25],[48,18,48,25],[39,8,39,12],[39,13,39,19],[39,20,39,25],[26,1,26,25],[27,1,27,19],[27,20,27,25],[28,1,28,3],[28,4,28,25],[19,1,19,25],[18,10,18,17],[18,18,18,25],[22,1,22,9],[24,18,24,25],[20,18,20,25],[20,10,20,17],[20,1,20,9],[21,10,21,17],[24,10,24,17],[25,10,25,25],[17,10,17,17],[17,18,17,25],[76,12,76,15],[75,22,75,25],[16,1,16,25],[79,12,79,14],[80,12,80,14],[24,0,24,9],[25,0,25,9],[29,1,29,19],[29,20,29,25],[23,1,23,9],[40,0,40,2],[40,3,40,7],[40,8,40,12],[40,13,40,19],[40,20,40,25],[55,1,55,25],[56,0,57,0],[56,1,57,11],[56,12,57,19],[56,20,56,25],[57,20,57,21],[57,22,57,23],[57,24,57,25],[41,0,41,2],[41,3,41,7],[41,8,41,12],[41,13,41,19],[41,20,41,25],[42,0,42,2],[42,3,42,12],[42,13,42,19],[42,20,42,25],[50,2,50,4],[50,5,50,7],[50,8,50,11],[50,12,50,17],[50,18,50,25],[51,2,51,4],[51,5,51,7],[62,1,62,25],[64,1,64,25],[60,1,60,11],[60,12,60,19],[60,20,60,21],[60,22,60,23],[60,24,60,25],[61,1,61,22],[61,23,61,25],[63,0,63,25],[58,1,58,11],[58,12,58,19],[58,20,58,21],[58,22,58,23],[58,24,58,25],[59,1,59,11],[59,12,59,19],[59,20,59,21],[59,22,59,23],[59,24,59,25],[65,1,65,4],[65,6,65,25],[67,0,67,25],[96,1,96,9],[96,10,96,16],[96,17,96,25],[90,24,90,25],[91,24,91,25],[92,24,92,25],[93,24,93,25],[93,1,93,23],[94,24,94,25],[94,2,94,23],[73,1,73,4],[73,6,73,25],[86,12,86,14],[86,17,86,19],[86,22,86,24],[85,17,85,19],[85,12,85,14],[75,12,75,15],[75,17,75,20],[84,12,84,14],[95,1,95,25],[138,0,138,25],[139,0,139,25],[133,0,133,25],[134,1,134,25],[136,0,136,25],[109,23,109,25],[110,23,110,25],[116,1,116,25],[124,2,124,25],[125,2,125,25],[126,2,126,25],[127,2,127,25],[137,1,137,25],[129,2,129,25],[130,2,130,25],[131,2,131,25],[132,0,132,25],[111,2,111,22],[112,2,112,22],[112,23,112,25],[117,0,117,25],[119,23,119,25],[119,1,119,22],[120,0,120,25]]}
["!"," UWAGA: ",null,null,"PRZED WYPEŁNIENIEM WNIOSKU NALEŻY ZAPOZNAĆ SIĘ Z INSTRUKCJĄ."]
[null,null,null,null,"PLIK ZOSTAŁ ZABEZPIECZONY PRZED EDYTOWANIEM. \nPROSZĘ NIE USUWAĆ ZABEZPIECZEŃ I SAMODZIELNIE NIE EDYTOWAĆ PLIKU."]
["WNIOSEK O DOFINANSOWANIE W RAMACH RZĄDOWEGO FUNDUSZU ROZWOJU DRÓG"]
["zadań mających na celu poprawę bezpieczeństwa niechronionych uczestników ruchu, \npolegających w szczególności na budowie, przebudowie lub remoncie dróg dla pieszych, dróg dla pieszych i rowerów, dróg dla rowerów, przejść dla pieszych, przejazdów dla rowerów, peronów przystankowych wraz z dojściami do tych peronów"]
["BUDOWA / ROZBUDOWA / PRZEBUDOWA"]
["PIECZĘĆ WPŁYWU \nDO URZĘDU \nWOJEWÓDZKIEGO",null,null,null,null,null,null,null,null,null,null,null,null,null,null,"NR EWIDENCYJNY \nWNIOSKU"]
[]
["1. ","NAZWA I ADRES JEDNOSTKI SAMORZĄDU TERYTORIALNEGO"]
["POWIAT ",null,null,null,null,null,null,"GMINA ",null,null,null,null,null,null,null,null,null,null,"NR TERC ",null,null,{"$f":"IFERROR(VLOOKUP(CONCATENATE(D9&K9),DANE!$A$70:$J$184,6,FALSE),\"\")","v":""}]
["NAZWA ",null,null,null,null,null,null,null,null,null,null,null,null,null,null,null,null,null,null,null,null,null,null,null,null,null,{"$f":"LEN(D10)","v":0},"z",90]
["ADRES ",null,null,null,null,null,null,null,null,null,null,null,null,null,null,null,null,null,null,null,null,null,null,null,null,null,{"$f":"LEN(D11)","v":0},"z",90]
["2. ","TYTUŁ ZADANIA "]
[null,null,null,null,null,null,null,null,null,null,null,null,null,null,null,null,null,null,null,null,null,null,null,null,null,null,{"$f":"LEN(A13)","v":0},"z",300]
["3. ","PRZEWIDYWANY OKRES REALIZACJI ZADANIA (rozpoczęcie i zakończenie realizacji zadania)"]
["zadanie jednoroczne realizowane    ",null,null,null,null,null,null,null,null,null,null,null,null,null,null,null,"od",null,null,null,null,null,2023,null,null,null,null,null,null,null,null,null,null,null,{"$f":"IF(R15=\"stycznia\",1,IF(R15=\"lutego\",2,IF(R15=\"marca\",3,IF(R15=\"kwietnia\",4,IF(R15=\"maja\",5,IF(R15=\"czerwca\",6,IF(R15=\"lipca\",7,IF(R15=\"sierpnia\",8,IF(R15=\"września\",9,IF(R15=\"października\",10,IF(R15=\"listopada\",11,IF(R15=\"grudnia\",12,\"\"))))))))))))","v":""},{"$f":"DATE(W15,AI15,1)","v":{"$error":"#VALUE!"}},{"$f":"DATEDIF(AJ15,AJ16,\"m\")","v":{"$error":"#VALUE!"}}]
[null,null,null,null,null,null,null,null,null,null,null,null,null,null,null,null,"do",null,null,null,null,null,null,null,null,null,null,null,null,null,null,null,null,null,{"$f":"IF(R16=\"stycznia\",1,IF(R16=\"lutego\",2,IF(R16=\"marca\",3,IF(R16=\"kwietnia\",4,IF(R16=\"maja\",5,IF(R16=\"czerwca\",6,IF(R16=\"lipca\",7,IF(R16=\"sierpnia\",8,IF(R16=\"września\",9,IF(R16=\"października\",10,IF(R16=\"listopada\",11,IF(R16=\"grudnia\",12,\"\"))))))))))))","v":""},{"$f":"DATE(W16,AI16,1)","v":{"$error":"#VALUE!"}},{"$f":"IFERROR(IF(AK15<12,\"OK\",\"BŁĄD\"),\"liczba\")","v":"liczba"}]
["4. ","RODZAJ ROBÓT (klasyfikacja wydatków w zależności od rodzaju robót)",null,null,null,null,null,null,null,null,null,null,null,null,null,null,null,null,null,null,null,null,null,null,null,null,null,null,null,null,null,null,null,null,"BUDOWA / ROZBUDOWA / PRZEBUDOWA"]
[null,null,"BUDOWA",null,null,null,null,null,null,null,"ROZBUDOWA",null,null,null,null,null,null,null,"PRZEBUDOWA",null,null,null,null,null,null,null,null,null,null,null,null,null,null,null,{"$f":"IF(AI17=\"REMONT\",\"REMONT\",\"BRP\")","v":"BRP"}]
[null,null,"TAK"]
["5. ","PRZEWIDYWANY HARMONOGRAM RZECZOWO-FINANSOWY REALIZACJI ZADANIA"]
["Lp.","ELEMENTY I RODZAJE ROBÓT",null,null,null,null,null,null,null,null,"KOSZT KWALIFIKOWALNY\n [zł]",null,null,null,null,null,null,null,"KOSZT NIEKWALIFIKOWALNY\n [zł]"]
["1.","Roboty budowlane"]
["2.","Nadzór inwestorski (wszystkie branże)"]
["3.","Tablice informacyjne"]
["SUMA ",null,null,null,null,null,null,null,null,null,{"$f":"SUM(K22:O24)","v":0},null,null,null,null,null,null,null,{"$f":"SUM(S22:X24)","v":0}]
["OGÓŁEM ",null,null,null,null,null,null,null,null,null,{"$f":"SUM(K25:U25)","v":0}]
["6. ","PRZEWIDYWANE KOSZTY REALIZACJI ZADANIA BRUTTO - WYDATKI KWALIFIKOWALNE [zł] 1\n"]
["A.","ŁĄCZNY KOSZT REALIZACJI ZADANIA [zł]",null,null,null,null,null,null,null,null,null,null,null,null,null,null,null,null,null,null,{"$f":"IF(K25=0,\"\",K25)","v":""}]
[null,"SŁOWNIE :",null,null,{"$f":"IF(OR(U28=0,U28=\"\"),\"\",Slownie(U28))","v":""}]
["B.","KWOTA WNIOSKOWANEGO DOFINANSOWANIA [zł]",null,null,null,null,null,null,null,null,null,null,null,null,null,null,null,null,null,null,{"$f":"IF(OR(U28=\"\",U34=\"\"),\"\",FLOOR((U28*U34),1))","v":""}]
[null,"SŁOWNIE :",null,null,{"$f":"IF(OR(U30=0,U30=\"\"),\" \",Slownie(U30))","v":" "}]
["C.","KWOTA WKŁADU WŁASNEGO [zł]",null,null,null,null,null,null,null,null,null,null,null,null,null,null,null,null,null,null,{"$f":"IF(OR(U28=\"\",U34=\"\"),\"\",U28-U30)","v":""}]
[null,"SŁOWNIE :",null,null,{"$f":"IF(OR(U32=0,U32=\"\"),\" \",Slownie(U32))","v":" "}]
["D.","UDZIAŁ DOFINANSOWANIA W KOSZTACH KWALIFIKOWALNYCH ZADANIA [%]",null,null,null,null,null,null,null,null,null,null,null,null,null,null,null,null,null,null,{"$f":"IFERROR(VLOOKUP(CONCATENATE(D9&K9),DANE!$A$70:$J$184,10,FALSE),\"\")","v":""}]
["1WYDATKI KWALIFIKOWALNE [zł]\nw tym: koszty związane z przebudową jezdni w obszarze oddziaływania przejść dla pieszych/przejazdów dla rowerów (usunięcie kolizji z sieciami, przebudowa skrzyżowania, zatoki autobusowej lub przystanku), koszty budowy/przebudowy przejść dla pieszych/przejazdów dla rowerów (budowa/przebudowa sieci, osłon przeciwhałasowych, tablicy informującej o prędkości/fotoradaru, oświetlenia ulicznego), koszt nadzoru inwestorskiego (jeśli wymagają tego przepisy) oraz koszt monitoringu przejścia dla pieszych/przejazdu dla rowerów/drogi."]
["7. ","PRZEWIDYWANY TERMIN DOKONYWANIA WYPŁAT NA RZECZ WYKONAWCY ZADANIA"]
["KWOTA DO WYPŁATY W DANYM ROKU NA RZECZ WYKONAWCY ZADANIA "]
["ROK",null,null,"KWALIFIKOWALNE",null,null,null,null,null,null,null,null,null,"NIEKWALIFIKOWALNE",null,null,null,null,null,null,"OGÓŁEM"]
[null,null,null,"DOFINANSOWANIE",null,null,null,null,"ŚRODKI WŁASNE"]
[2023,null,null,null,null,null,null,null,null,null,null,null,null,null,null,null,null,null,null,null,{"$f":"IF(AND(D40=\"\",I40=\"\",N40=\"\"),\"\",SUM(D40:T40))","v":""}]
[2024,null,null,null,null,null,null,null,null,null,null,null,null,null,null,null,null,null,null,null,{"$f":"IF(AND(D41=\"\",I41=\"\",N41=\"\"),\"\",SUM(D41:T41))","v":""}]
["SUMA",null,null,{"$f":"SUM(D40:H41)","v":0},null,null,null,null,{"$f":"SUM(I40:M41)","v":0},null,null,null,null,null,null,null,null,null,null,null,null,null,null,null,null,null,null,null,null,null,null,null,null,null,{"$f":"IF(U30=\"\",\"ok\",IF(D42<>U30,\"błąd\",\"ok\"))","v":"ok"},{"$f":"IF(U32=\"\",\"ok\",IF(I42<>U32,\"błąd\",\"ok\"))","v":"ok"}]
["ŁĄCZNIE",null,null,{"$f":"D42+I42","v":0},null,null,null,null,null,null,null,null,null,{"$f":"SUM(N40:T41)","v":0},null,null,null,null,null,null,{"$f":"SUM(U40:Z41)","v":0},null,null,null,null,null,null,null,null,null,null,null,null,null,{"$f":"IF(U28=\"\",\"ok\",IF(D43<>U28,\"błąd\",\"ok\"))","v":"ok"},{"$f":"IF(N43<>S25,\"błąd\",\"ok\")","v":"ok"},{"$f":"IF(U43<>K26,\"błąd\",\"ok\")","v":"ok"}]
["8. \n","RODZAJ I LOKALIZACJA ZADANIA \n(kategoria, numer i lokalizacja drogi, na której znajduje się realizowane zadanie)"]
["•  ","zadanie realizowane w obrębie jednej drogi publicznej (o jednym numerze)"]
[null,"L.p.","KATEGORIA",null,null,"NR DROGI",null,null,"POWIAT ",null,null,null,"GMINA",null,null,null,null,null,"MIEJSCOWOŚĆ"]
[null,1]
["•  ","zadanie realizowane w obrębie jednego skrzyżowania (przejścia dla pieszych i przejazdy dla rowerów)"]
[null,"L.p.","KATEGORIA",null,null,"NR DROGI",null,null,"POWIAT ",null,null,null,"GMINA",null,null,null,null,null,"MIEJSCOWOŚĆ"]
[null,1]
[null,2]
[null,3]
[null,4]
[null,"oraz "]
[null,"o numerze drogi/dróg",null,null,null,null,null,null,null,1,null,null,null,2,null,null,null,3,null,null,null,4]
["9.\n","INFORMACJA O DOPEŁNIENIU WYMOGÓW, JAKIE W ZWIĄZKU Z PLANOWANĄ REALIZACJĄ ZADANIA WYNIKAJĄ Z OBOWIĄZUJĄCYCH PRZEPISÓW PRAWA"]
[null,"Rodzaj dokumentu",null,null,null,null,null,null,null,null,null,null,"nr dokumentu / \nznak dokumentu \n(jeśli dotyczy)",null,null,null,null,null,null,null,"data dokumentu (wydania, zatwierdzenia lub opracowania)"]
[null,null,null,null,null,null,null,null,null,null,null,null,null,null,null,null,null,null,null,null,"dzień",null,"miesiąc",null,"rok"]
["1.","Prawomocna decyzja o pozwoleniu na budowę lub \nprawomocna decyzja o zezwoleniu na realizację inwestycji drogowej \nlub \nzgłoszenie robót budowlanych z potwierdzeniem/poświadczeniem o braku sprzeciwu"]
["2.","Kosztorys inwestorski"]
["3.","Zatwierdzony projekt stałej organizacji ruchu lub pismo organu uprawnionego do zatwierdzenia organizacji ruchu"]
["4.","Czy wnioskodawca posiada tytuł prawny do nieruchomości wskazanych w oświadczeniu o dysponowaniu nieruchomością na cele budowlane zgodnie z art. 3 Prawa budowlanego, tj. tytuł prawny wynikający z prawa własności, użytkowania wieczystego, zarządu, ograniczonego prawa rzeczowego albo stosunku zobowiązaniowego, przewidującego uprawnienia do wykonywania robót budowlanych, ponadto tytuł ten nie wynika z posiadania samoistnego/władania lub z mocy prawa na podst. art. 73 ustawy z dnia 13 października 1998 r. Przepisy wprowadzające ustawy reformujące administrację publiczną (dotyczy sytuacji gdy jst nie posiada decyzji potwierdzającej ten fakt)"]
["10.\n ","OPIS ZADANIA OBEJMUJĄCY STAN ISTNIEJĄCY ORAZ PROJEKTOWANY WRAZ Z UZASADNIENIEM REALIZACJI ZADANIA"]
[null,null,null,null,null,null,null,null,null,null,null,null,null,null,null,null,null,null,null,null,null,null,null,null,null,null,{"$f":"LEN(A64)","v":0},"z",1000]
["11. ","CHARAKTERYSTYKA ZADANIA WEDŁUG KRYTERIÓW OCENY MERYTORYCZNEJ"]
[null,"Kryterium nr 1",null,null,null,"-","Wpływ zadania na jakość życia mieszkańców "]
["A. ","Wpływ zadania na jakość życia mieszkańców"]
[null,null,null,null,null,null,null,null,null,null,null,null,null,null,null,null,null,null,null,null,null,null,null,null,null,null,{"$f":"LEN(A68)","v":0},"z",800]
["B. ","Lokalizacja zadania względem obiektów, w których prowadzona jest działalność o charakterze publicznym lub/i działalność gospodarcza (placówki oświatowe, handlowe, ochrony zdrowia, opiekuńcze, kultury, sportu, rekreacji i wypoczynku, urzędy, itp.)"]
["Lokalizacja zadania względem obiektów",null,null,null,null,"Obiekty"]
["do 100 m ",null,null,null,null,null,null,null,null,null,null,null,null,null,null,null,null,null,null,null,null,null,null,null,null,null,{"$f":"LEN(F71)","v":0},"z",400]
["do 200 m",null,null,null,null,null,null,null,null,null,null,null,null,null,null,null,null,null,null,null,null,null,null,null,null,null,{"$f":"LEN(F72)","v":0},"z",400]
["do 300 m",null,null,null,null,null,null,null,null,null,null,null,null,null,null,null,null,null,null,null,null,null,null,null,null,null,{"$f":"LEN(F73)","v":0},"z",400]
[null,"Kryterium nr 2",null,null,null,"-","Wpływ zadania na stan bezpieczeństwa ruchu drogowego niechronionych uczestników ruchu drogowego"]
["A. ","Rozwiązania zwiększające bezpieczeństwo uczestników ruchu"]
[null,null,null,null,null,null,null,null,null,null,null,null,"BUDOWA (nowe)",null,null,null,null,"ROZBUDOWA (istniejące)",null,null,null,null,"PRZEBUDOWA (istniejące)"]
[null,null,null,null,null,null,null,null,null,null,null,null,"ilość",null,null,null,null,"ilość",null,null,null,null,"ilość"]
["•  ","drogi dla pieszych",null,null,null,null,null,null,null,null,null,null,null,null,null,"km",null,null,null,null,"km",null,null,null,null,"km"]
["•  ","drogi dla pieszych i rowerów",null,null,null,null,null,null,null,null,null,null,null,null,null,"km",null,null,null,null,"km",null,null,null,null,"km"]
["•  ","drogi dla rowerów",null,null,null,null,null,null,null,null,null,null,null,null,null,"km",null,null,null,null,"km",null,null,null,null,"km"]
["•  ","przejścia dla pieszych",null,null,null,null,null,null,null,null,null,null,null,null,null,"szt.",null,null,null,null,"szt.",null,null,null,null,"szt."]
[null,null,"wraz z obszarem oddziaływania",null,null,null,null,null,null,null,null,null,null,null,null,"km",null,null,null,null,"km",null,null,null,null,"km"]
["•  ","przejazdy dla rowerów",null,null,null,null,null,null,null,null,null,null,null,null,null,"szt.",null,null,null,null,"szt.",null,null,null,null,"szt."]
[null,null,"wraz z obszarem oddziaływania ",null,null,null,null,null,null,null,null,null,null,null,null,"km",null,null,null,null,"km",null,null,null,null,"km"]
["•  ","perony przystankowe",null,null,null,null,null,null,null,null,null,null,null,null,null,"szt.",null,null,null,null,"szt.",null,null,null,null,"szt."]
[null,null,"wraz z dojściami do tych peronów",null,null,null,null,null,null,null,null,null,null,null,null,"km",null,null,null,null,"km",null,null,null,null,"km"]
["ŁĄCZNIE",null,null,null,null,null,null,null,null,null,{"$f":"SUM(COUNTIF(K78:L81,\"tak\"),COUNTIF(K83,\"tak\"),COUNTIF(K85,\"tak\"))","v":0},null,{"$f":"SUMIF(P78:P86,\"km\",M78:O86)","v":0},null,null,"km",null,{"$f":"SUMIF(U78:U86,\"km\",R78:T86)","v":0},null,null,"km",null,{"$f":"SUMIF(Z78:Z86,\"km\",W78:Y86)","v":0},null,null,"km"]
[null,null,null,null,null,null,null,null,null,null,null,null,{"$f":"SUMIF(P78:P86,\"szt.\",M78:O86)","v":0},null,null,"szt.",null,{"$f":"SUMIF(U78:U86,\"szt.\",R78:T86)","v":0},null,null,"szt.",null,{"$f":"SUMIF(Z78:Z86,\"szt.\",W78:Y86)","v":0},null,null,"szt."]
["B. ","Ryzyko społeczne wypadków"]
["Zadanie zlokalizowane jest na drodze publicznej przebiegającej przez powiat o bardzo dużym lub dużym poziomie ryzyka społecznego:"]
[null,"•","wypadki ogółem, ofiary śmiertelne i ciężko ranne: klasa ryzyka D i E",null,null,null,null,null,null,null,null,null,null,null,null,null,null,null,null,null,null,null,{"$f":"IFERROR(VLOOKUP($D$9,DANE!$E$299:$O$311,2,FALSE),\"\")","v":""},null,{"$f":"IF(OR(W91=\"D\",W91=\"E\"),\"TAK\",IF(W91=\"\",\"\",\"NIE\"))","v":""}]
[null,"•","wypadki z udziałem pieszych: klasa ryzyka D i E",null,null,null,null,null,null,null,null,null,null,null,null,null,null,null,null,null,null,null,{"$f":"IFERROR(VLOOKUP($D$9,DANE!$E$299:$O$311,2,FALSE),\"\")","v":""},null,{"$f":"IF(OR(W92=\"D\",W92=\"E\"),\"TAK\",IF(W92=\"\",\"\",\"NIE\"))","v":""}]
[null,"•","wypadki spowodowane zbyt dużą prędkością: klasa ryzyka D i E ",null,null,null,null,null,null,null,null,null,null,null,null,null,null,null,null,null,null,null,{"$f":"IFERROR(VLOOKUP($D$9,DANE!$E$299:$O$311,2,FALSE),\"\")","v":""},null,{"$f":"IF(OR(W93=\"D\",W93=\"E\"),\"TAK\",IF(W93=\"\",\"\",\"NIE\"))","v":""}]
["C.\n\n","Realizacja projektu obejmuje, zgłoszenie określone w Programie Likwidacji Miejsc Niebezpiecznych na Drogach Lokalnych w województwie świętokrzyskim 2019 - 2023 Bezpieczni na 5+ [TAK/NIE]"]
[null,"•","Pozycja, pod którą zgłoszenie znajduje się w Programie Bezpieczni na 5+"]
["12. ","OSOBY UPOWAŻNIONE DO UDZIELANIA WYJAŚNIEŃ KOMISJI"]
["Lp.","imię i nazwisko",null,null,null,null,null,null,null,null,"nr telefonu",null,null,null,null,null,null,"e-mail"]
[1]
[2]
[3]
["13. ","OŚWIADCZENIE I ZOBOWIĄZANIE WNIOSKODAWCY (ustawowego zarządcy drogi)"]
["Wnioskodawca oświadcza, że: "]
["1)","do wniosku dołączone zostały załączniki:   "]
[null,"a)","kopia prawomocnej decyzji o pozwoleniu na budowę (jeśli posiada),\nlub"]
[null,null,"kopia prawomocnej decyzji o zezwoleniu na realizację inwestycji drogowej (jeśli posiada),\nlub"]
[null,null,"kopia zgłoszenia robót budowlanych z poświadczeniem braku podstaw do wniesienia sprzeciwu na zgłoszenie wykonania robót budowlanych potwierdzone zaświadczeniem organu administracji architektoniczno-budowlanej lub pieczęcią organu administracji architektoniczno-budowlanej (jeśli posiada),"]
[null,"*","w przypadku niezałączenia jednego z trzech wyżej wymienionych dokumentów beneficjent jest zobowiązany do potwierdzenia zapoznania się z oświadczeniem o uzupełnieniu dokumentacji znajdującym się poniżej (w części OŚWIADCZENIA)"]
[null,"b)","zgodna ze stanem faktycznym, czytelna mapa poglądowa z naniesioną skalą i z zaznaczonym miejscem realizacji wnioskowanego zadania jego lokalizacji w stosunku do istniejących obiektów użyteczności publicznej, innych instytucji i podmiotów (obligatoryjnie),"]
[null,"c)","kopia strony projektu stałej organizacji ruchu, z której wynika, że projekt jest zatwierdzony (obligatoryjnie) \n"]
[null,null,"lub \npismo organu uprawnionego do zatwierdzenia organizacji ruchu (obligatoryjnie),"]
[null,"d)","kopia kosztorysu inwestorskiego (obligatoryjnie),"]
[null,"e)","kopia zgody na odstępstwo od przepisów techniczno-budowlanych (jeśli dotyczy),"]
[null,"f)","dodatkowe załączniki (jeśli dotyczy),"]
["2)","dane i informacje zawarte we wniosku są prawidłowe i kompletne;"]
["3)","na dzień złożenia wniosku, zadanie obejmuje inwestycję wyłącznie na drodze publicznej, dla której wnioskodawca pełni rolę ustawowego zarządcy i która została zaliczona do kategorii dróg powiatowych lub gminnych;"]
["4)","zapewnione zostanie zabezpieczenie całości zadeklarowanego we wniosku wkładu własnego,"]
["5)","dopełnił bądź dopełni wszelkich wymogów wynikających z przepisów prawa uprawniających do realizacji zadania;"]
["OŚWIADCZENIA:"]
["   Oświadczenie o uzupełnieniu dokumentacji"]
[null,"Oświadczam, że dostarczę przynajmniej jednego z dokumentów: \n - kopia prawomocnej decyzji o pozwoleniu na budowę,\n - kopia prawomocnej decyzji o zezwoleniu na realizację inwestycji drogowej,\n - kopia zgłoszenia robót budowlanych z poświadczeniem braku podstaw do wniesienia sprzeciwu na zgłoszenie wykonania robót budowlanych potwierdzone zaświadczeniem organu administracji architektoniczno-budowlanej lub pieczęcią organu administracji architektoniczno-budowlane\n w terminie 30 dni od dnia opublikowania zatwierdzonej przez Prezesa Rady Ministrów listy przeznaczonych na dofinansowanie zadań mających na celu wyłącznie poprawę bezpieczeństwa niechronionych uczestników ruchu, polegających w szczególności na budowie, przebudowie lub remoncie dróg dla pieszych, dróg dla pieszych i rowerów, dróg dla rowerów, przejść dla pieszych, przejazdów dla rowerów, peronów przystankowych wraz z dojściami do tych peronów."]
["   Oświadczenie o przekazaniu danych o sieci dróg publicznych do GDDKiA"]
[null,"Oświadczam, że zgodnie z zapisami § 2.2 rozporządzenia Ministra Infrastruktury z dnia 16 lutego 2005 r. w sprawie trybu sporządzania informacji oraz gromadzenia i udostępniania danych o sieci dróg publicznych, obiektach mostowych, tunelach oraz promach (Dz.U. 2005 nr 67 poz. 583) sporządzono oraz przekazano do Generalnego Dyrektora Dróg Krajowych i Autostrad informacje dla celów statystycznych o sieci dróg publicznych. "]
["   Oświadczenie o zgodności z przepisami prawa i wytycznymi"]
[null,"Oświadczam, że realizacja zgłoszonego zadania odbędzie się z zachowaniem przepisów prawa budowlanego, w tym warunków techniczno-budowlanych dotyczących dróg, spełnienia parametrów technicznych wynikających z wytycznych projektowania infrastruktury dla pieszych oraz rowerów, odpowiedniego oznakowania i zastosowania urządzeń bezpieczeństwa i organizacji ruchu, w szczególności z:"]
[null,"•  ","ustawą z dnia 7 lipca 1994 r. prawo budowlane (tj. Dz.U. z 2021 r. poz. 2351 ze zm.)"]
[null,"•  ","rozporządzeniem Ministra Infrastruktury z dnia 24 czerwca 2022 r. w sprawie przepisów techniczno-budowlanych dotyczących dróg publicznych (tj. Dz. U. z 2022 r. poz. 1518)"]
[null,"•  ","ustawą z dnia 21 marca 1985 r. o drogach publicznych (tj. Dz. U. z 2022 r. poz. 1693 ze zm.)"]
[null,"•  ","wytycznymi projektowania infrastruktury dla pieszych. Część 3: Projektowanie przejść dla pieszych \n(WR-D-41-3),"]
[null,"•  ","wytycznymi projektowania infrastruktury dla pieszych. Część 4: Projektowanie oświetlenia przejść dla pieszych (WR-D-41-4);"]
[null,"•  ","wytycznymi projektowania infrastruktury dla rowerów. Część 1: Planowanie tras dla rowerów \n(WR-D-42-1)"]
[null,"•  ","wytycznymi projektowania infrastruktury dla rowerów. Część 2: Projektowanie dróg dla\nrowerów, dróg dla pieszych i rowerów oraz pasów i kontrapasów ruchu dla rowerów (WR-D-42-2)"]
[null,"•  ","wytycznymi projektowania infrastruktury dla rowerów. Część 3: Projektowanie przejazdów dla\nrowerów oraz infrastruktury dla rowerów na skrzyżowaniach i węzłach (WR-D-42-3)"]
[]
["Wnioskodawca zobowiązuję się do: "]
["•  ","przeprowadzenia postępowania o zamówienie publiczne zgodnie z obowiązującymi przepisami Prawa zamówień publicznych,   "]
[]
["Ja, niżej podpisana/y, oświadczam, że informacje zawarte we wniosku oraz przedłożonych załącznikach są zgodne z prawdą. Jestem świadomy odpowiedzialności karnej wynikającej z art. 271 Kodeksu Karnego, dotyczącego poświadczenia nieprawdy, co do okoliczności mającej znaczenie prawne."]
[]
["Podpisy i pieczątki osób upoważnionych z ramienia wnioskodawcy (wraz z podpisem Skarbnika/Głównego Księgowego) - ustawowy zarządca drogi"]

{"sheet":"Remont","index":1,"n_rows":138,"n_cols":37,"rows_kept":138,"cut":false,"hidden":false,"merged":[[138,0,138,25],[19,1,19,9],[19,10,19,17],[19,18,19,25],[20,1,20,9],[20,10,20,17],[20,18,20,25],[21,10,21,17],[21,18,21,25],[22,10,22,17],[22,18,22,25],[23,0,23,9],[23,10,23,17],[23,18,23,25],[24,10,24,25],[88,0,88,25],[89,2,89,21],[89,22,89,23],[90,2,90,21],[90,22,90,23],[91,2,91,21],[91,22,91,23],[124,2,124,25],[125,2,125,25],[126,2,126,25],[115,1,115,25],[116,0,116,25],[117,0,117,25],[118,1,118,22],[118,23,118,25],[119,0,119,25],[120,1,120,22],[120,23,120,25],[121,0,121,25],[122,1,122,22],[122,23,122,25],[123,2,123,25],[137,0,137,25],[127,2,127,25],[128,2,128,25],[129,2,129,25],[130,2,130,25],[131,0,131,25],[132,0,132,25],[133,1,133,25],[135,0,135,25],[136,1,136,25],[113,1,113,25],[114,1,114,25],[106,2,106,22],[106,23,106,25],[107,2,107,22],[107,23,107,25],[102,2,102,22],[102,23,102,25],[103,2,103,22],[103,23,103,25],[104,2,104,22],[104,23,104,25],[105,2,105,25],[111,2,111,22],[111,23,111,25],[108,2,108,22],[108,23,108,25],[109,2,109,22],[109,23,109,25],[110,2,110,22],[110,23,110,25],[112,1,112,25],[98,1,98,9],[98,10,98,16],[98,17,98,25],[99,1,99,25],[100,0,100,25],[101,1,101,25],[96,1,96,9],[96,10,96,16],[96,17,96,25],[97,1,97,9],[97,10,97,16],[97,17,97,25],[92,1,92,23],[92,24,92,25],[93,2,93,23],[93,24,93,25],[94,1,94,25],[95,1,95,9],[95,10,95,16],[95,17,95,25],[87,1,87,25],[89,24,89,25],[90,24,90,25],[91,24,91,25],[85,0,86,9],[85,10,86,11],[85,12,85,14],[86,12,86,14],[84,0,84,1],[84,2,84,9],[84,10,84,11],[84,12,84,14],[83,1,83,9],[83,10,83,11],[83,12,83,14],[81,10,81,11],[81,12,81,14],[82,0,82,1],[82,2,82,9],[82,10,82,11],[82,12,82,14],[80,0,80,1],[80,2,80,9],[80,10,80,11],[80,12,80,14],[73,1,73,25],[74,0,75,11],[74,12,74,15],[75,12,75,15],[70,0,70,4],[70,5,70,25],[71,0,71,4],[71,5,71,25],[72,1,72,4],[72,6,72,25],[74,16,86,25],[78,1,78,9],[78,10,78,11],[78,12,78,14],[79,1,79,9],[79,10,79,11],[79,12,79,14],[76,1,76,9],[76,10,76,11],[76,12,76,14],[77,1,77,9],[77,10,77,11],[77,12,77,14],[81,1,81,9],[66,0,66,25],[67,1,67,25],[68,0,68,4],[68,5,68,25],[69,0,69,4],[69,5,69,25],[61,1,61,25],[62,0,62,25],[63,1,63,25],[64,1,64,4],[64,6,64,25],[65,1,65,25],[59,1,59,11],[59,12,59,19],[59,20,59,21],[59,22,59,23],[59,24,59,25],[60,1,60,22],[60,23,60,25],[57,1,57,11],[57,12,57,19],[57,20,57,21],[57,22,57,23],[57,24,57,25],[58,1,58,11],[58,12,58,19],[58,20,58,21],[58,22,58,23],[58,24,58,25],[54,1,54,25],[55,0,56,0],[55,1,56,11],[55,12,56,19],[55,20,55,25],[56,20,56,21],[56,22,56,23],[56,24,56,25],[52,1,52,2],[52,3,52,25],[53,1,53,8],[53,10,53,12],[53,14,53,16],[53,18,53,20],[53,22,53,24],[47,0,53,0],[47,2,47,4],[47,5,47,7],[47,8,47,11],[47,12,47,17],[47,18,47,25],[48,2,48,4],[48,5,48,7],[48,8,48,11],[50,2,50,4],[50,5,50,7],[50,8,50,11],[50,12,50,17],[50,18,50,25],[51,2,51,4],[51,5,51,7],[51,8,51,11],[51,12,51,17],[51,18,51,25],[46,1,46,22],[46,23,46,25],[42,1,42,25],[43,1,43,22],[43,23,43,25],[48,18,48,25],[49,2,49,4],[49,5,49,7],[49,8,49,11],[49,12,49,17],[49,18,49,25],[48,12,48,17],[44,0,45,0],[44,2,44,4],[44,5,44,7],[44,8,44,11],[44,12,44,17],[44,18,44,25],[45,2,45,4],[40,0,40,2],[40,3,40,7],[40,8,40,12],[40,13,40,19],[40,20,40,25],[41,0,41,2],[41,3,41,12],[41,13,41,19],[41,20,41,25],[45,5,45,7],[45,8,45,11],[45,12,45,17],[45,18,45,25],[38,0,38,2],[38,3,38,7],[38,8,38,12],[38,13,38,19],[38,20,38,25],[39,0,39,2],[39,3,39,7],[39,8,39,12],[39,13,39,19],[39,20,39,25],[35,0,35,25],[36,0,37,2],[36,3,36,12],[36,13,37,19],[36,20,37,25],[37,3,37,7],[37,8,37,12],[31,1,31,3],[31,4,31,25],[32,1,32,19],[32,20,32,25],[33,0,33,25],[34,1,34,25],[28,1,28,19],[28,20,28,25],[29,1,29,3],[29,4,29,25],[30,1,30,19],[30,20,30,25],[25,1,25,25],[26,1,26,19],[26,20,26,25],[27,1,27,3],[27,4,27,25],[24,0,24,9],[21,1,21,9],[22,1,22,9],[18,1,18,25],[16,1,16,25],[17,2,17,9],[17,10,17,17],[17,18,17,25],[13,1,13,25],[14,0,15,14],[14,15,15,15],[14,17,14,21],[14,22,14,25],[15,17,15,21],[15,22,15,25],[9,0,9,2],[9,3,9,25],[10,0,10,2],[10,3,10,25],[11,1,11,25],[12,0,12,25],[0,1,0,3],[0,4,0,25],[1,0,1,3],[1,4,1,25],[2,0,2,25],[3,0,3,25],[8,0,8,2],[8,3,8,6],[8,7,8,9],[8,10,8,17],[8,18,8,20],[8,21,8,25],[4,0,4,25],[5,0,6,2],[5,3,6,14],[5,15,6,16],[5,17,6,25],[7,1,7,25]]}
["!"," UWAGA: ",null,null,"PRZED WYPEŁNIENIEM WNIOSKU NALEŻY ZAPOZNAĆ SIĘ Z INSTRUKCJĄ."]
[null,null,null,null,"PLIK ZOSTAŁ ZABEZPIECZONY PRZED EDYTOWANIEM. \nPROSZĘ NIE USUWAĆ ZABEZPIECZEŃ I SAMODZIELNIE NIE EDYTOWAĆ PLIKU."]
["WNIOSEK O DOFINANSOWANIE W RAMACH RZĄDOWEGO FUNDUSZU ROZWOJU DRÓG"]
["zadań mających na celu poprawę bezpieczeństwa niechronionych uczestników ruchu, \npolegających w szczególności na budowie, przebudowie lub remoncie dróg dla pieszych, dróg dla pieszych i rowerów, dróg dla rowerów, przejść dla pieszych, przejazdów dla rowerów, peronów przystankowych wraz z dojściami do tych peronów"]
["REMONT"]
["PIECZĘĆ WPŁYWU \nDO URZĘDU \nWOJEWÓDZKIEGO",null,null,null,null,null,null,null,null,null,null,null,null,null,null,"NR EWIDENCYJNY \nWNIOSKU"]
[]
["1. ","NAZWA I ADRES JEDNOSTKI SAMORZĄDU TERYTORIALNEGO"]
["POWIAT ",null,null,null,null,null,null,"GMINA ",null,null,null,null,null,null,null,null,null,null,"NR TERC ",null,null,{"$f":"IFERROR(VLOOKUP(CONCATENATE(D9&K9),DANE!$A$70:$J$184,6,FALSE),\"\")","v":""}]
["NAZWA ",null,null,null,null,null,null,null,null,null,null,null,null,null,null,null,null,null,null,null,null,null,null,null,null,null,{"$f":"LEN(D10)","v":0},"z",90]
["ADRES ",null,null,null,null,null,null,null,null,null,null,null,null,null,null,null,null,null,null,null,null,null,null,null,null,null,{"$f":"LEN(D11)","v":0},"z",90]
["2. ","TYTUŁ ZADANIA "]
[null,null,null,null,null,null,null,null,null,null,null,null,null,null,null,null,null,null,null,null,null,null,null,null,null,null,{"$f":"LEN(A13)","v":0},"z",300]
["3. ","PRZEWIDYWANY OKRES REALIZACJI ZADANIA (rozpoczęcie i zakończenie realizacji zadania)"]
["zadanie jednoroczne realizowane    ",null,null,null,null,null,null,null,null,null,null,null,null,null,null,null,"od",null,null,null,null,null,2023,null,null,null,null,null,null,null,null,null,null,null,{"$f":"IF(R15=\"stycznia\",1,IF(R15=\"lutego\",2,IF(R15=\"marca\",3,IF(R15=\"kwietnia\",4,IF(R15=\"maja\",5,IF(R15=\"czerwca\",6,IF(R15=\"lipca\",7,IF(R15=\"sierpnia\",8,IF(R15=\"września\",9,IF(R15=\"października\",10,IF(R15=\"listopada\",11,IF(R15=\"grudnia\",12,\"\"))))))))))))","v":""},{"$f":"DATE(W15,AI15,1)","v":{"$error":"#VALUE!"}},{"$f":"DATEDIF(AJ15,AJ16,\"m\")","v":{"$error":"#VALUE!"}}]
[null,null,null,null,null,null,null,null,null,null,null,null,null,null,null,null,"do",null,null,null,null,null,null,null,null,null,null,null,null,null,null,null,null,null,{"$f":"IF(R16=\"stycznia\",1,IF(R16=\"lutego\",2,IF(R16=\"marca\",3,IF(R16=\"kwietnia\",4,IF(R16=\"maja\",5,IF(R16=\"czerwca\",6,IF(R16=\"lipca\",7,IF(R16=\"sierpnia\",8,IF(R16=\"września\",9,IF(R16=\"października\",10,IF(R16=\"listopada\",11,IF(R16=\"grudnia\",12,\"\"))))))))))))","v":""},{"$f":"DATE(W16,AI16,1)","v":{"$error":"#VALUE!"}},{"$f":"IFERROR(IF(AK15<12,\"OK\",\"BŁĄD\"),\"liczba\")","v":"liczba"}]
["4. ","RODZAJ ROBÓT (klasyfikacja wydatków w zależności od rodzaju robót)",null,null,null,null,null,null,null,null,null,null,null,null,null,null,null,null,null,null,null,null,null,null,null,null,null,null,null,null,null,null,null,null,"BUDOWA / ROZBUDOWA / PRZEBUDOWA"]
[null,null,null,null,null,null,null,null,null,null,"REMONT",null,null,null,null,null,null,null,"TAK",null,null,null,null,null,null,null,null,null,null,null,null,null,null,null,{"$f":"IF(AI17=\"REMONT\",\"REMONT\",\"BRP\")","v":"BRP"}]
["5. ","PRZEWIDYWANY HARMONOGRAM RZECZOWO-FINANSOWY REALIZACJI ZADANIA"]
["Lp.","ELEMENTY I RODZAJE ROBÓT",null,null,null,null,null,null,null,null,"KOSZT KWALIFIKOWALNY\n [zł]",null,null,null,null,null,null,null,"KOSZT NIEKWALIFIKOWALNY\n [zł]"]
["1.","Roboty budowlane"]
["2.","Nadzór inwestorski (wszystkie branże)"]
["3.","Tablice informacyjne"]
["SUMA ",null,null,null,null,null,null,null,null,null,{"$f":"SUM(K21:O23)","v":0},null,null,null,null,null,null,null,{"$f":"SUM(S21:X23)","v":0}]
["OGÓŁEM ",null,null,null,null,null,null,null,null,null,{"$f":"SUM(K24:U24)","v":0}]
["6. ","PRZEWIDYWANE KOSZTY REALIZACJI ZADANIA BRUTTO - WYDATKI KWALIFIKOWALNE [zł] 1\n"]
["A.","ŁĄCZNY KOSZT REALIZACJI ZADANIA [zł]",null,null,null,null,null,null,null,null,null,null,null,null,null,null,null,null,null,null,{"$f":"IF(K25=0,\"\",K25)","v":""}]
[null,"SŁOWNIE :",null,null,{"$f":"IF(OR(U27=0,U27=\"\"),\"\",Slownie(U27))","v":""}]
["B.","KWOTA WNIOSKOWANEGO DOFINANSOWANIA [zł]",null,null,null,null,null,null,null,null,null,null,null,null,null,null,null,null,null,null,{"$f":"IF(OR(U27=\"\",U33=\"\"),\"\",FLOOR((U27*U33),1))","v":""}]
[null,"SŁOWNIE :",null,null,{"$f":"IF(OR(U29=0,U29=\"\"),\" \",Slownie(U29))","v":" "}]
["C.","KWOTA WKŁADU WŁASNEGO [zł]",null,null,null,null,null,null,null,null,null,null,null,null,null,null,null,null,null,null,{"$f":"IF(OR(U27=\"\",U33=\"\"),\"\",U27-U29)","v":""}]
[null,"SŁOWNIE :",null,null,{"$f":"IF(OR(U31=0,U31=\"\"),\" \",Slownie(U31))","v":" "}]
["D.","UDZIAŁ DOFINANSOWANIA W KOSZTACH KWALIFIKOWALNYCH ZADANIA [%]",null,null,null,null,null,null,null,null,null,null,null,null,null,null,null,null,null,null,{"$f":"IFERROR(VLOOKUP(CONCATENATE(D9&K9),DANE!$A$70:$J$184,10,FALSE),\"\")","v":""}]
["1WYDATKI KWALIFIKOWALNE [zł]\nw tym: koszty związane z przebudową jezdni w obszarze oddziaływania przejść dla pieszych/przejazdów dla rowerów (usunięcie kolizji z sieciami, przebudowa skrzyżowania, zatoki autobusowej lub przystanku), koszty budowy/przebudowy przejść dla pieszych/przejazdów dla rowerów (budowa/przebudowa sieci, osłon przeciwhałasowych, tablicy informującej o prędkości/fotoradaru, oświetlenia ulicznego), koszt nadzoru inwestorskiego (jeśli wymagają tego przepisy) oraz koszt monitoringu przejścia dla pieszych/przejazdu dla rowerów/drogi."]
["7. ","PRZEWIDYWANY TERMIN DOKONYWANIA WYPŁAT NA RZECZ WYKONAWCY ZADANIA"]
["KWOTA DO WYPŁATY W DANYM ROKU NA RZECZ WYKONAWCY ZADANIA "]
["ROK",null,null,"KWALIFIKOWALNE",null,null,null,null,null,null,null,null,null,"NIEKWALIFIKOWALNE",null,null,null,null,null,null,"OGÓŁEM"]
[null,null,null,"DOFINANSOWANIE",null,null,null,null,"ŚRODKI WŁASNE"]
[2023,null,null,null,null,null,null,null,null,null,null,null,null,null,null,null,null,null,null,null,{"$f":"IF(AND(D39=\"\",I39=\"\",N39=\"\"),\"\",SUM(D39:T39))","v":""}]
[2024,null,null,null,null,null,null,null,null,null,null,null,null,null,null,null,null,null,null,null,{"$f":"IF(AND(D40=\"\",I40=\"\",N40=\"\"),\"\",SUM(D40:T40))","v":""}]
["SUMA",null,null,{"$f":"SUM(D39:H40)","v":0},null,null,null,null,{"$f":"SUM(I39:M40)","v":0},null,null,null,null,null,null,null,null,null,null,null,null,null,null,null,null,null,null,null,null,null,null,null,null,null,{"$f":"IF(U29=\"\",\"ok\",IF(D41<>U29,\"błąd\",\"ok\"))","v":"ok"},{"$f":"IF(U31=\"\",\"ok\",IF(I41<>U31,\"błąd\",\"ok\"))","v":"ok"}]
["ŁĄCZNIE",null,null,{"$f":"D41+I41","v":0},null,null,null,null,null,null,null,null,null,{"$f":"SUM(N39:T40)","v":0},null,null,null,null,null,null,{"$f":"SUM(U39:Z40)","v":0},null,null,null,null,null,null,null,null,null,null,null,null,null,{"$f":"IF(U27=\"\",\"ok\",IF(D42<>U27,\"błąd\",\"ok\"))","v":"ok"},{"$f":"IF(N42<>S24,\"błąd\",\"ok\")","v":"ok"},{"$f":"IF(U42<>K25,\"błąd\",\"ok\")","v":"ok"}]
["8. \n","RODZAJ I LOKALIZACJA ZADANIA \n(kategoria, numer i lokalizacja drogi, na której znajduje się realizowane zadanie)"]
["•  ","zadanie realizowane w obrębie jednej drogi publicznej (o jednym numerze)"]
[null,"L.p.","KATEGORIA",null,null,"NR DROGI",null,null,"POWIAT ",null,null,null,"GMINA",null,null,null,null,null,"MIEJSCOWOŚĆ"]
[null,1]
["•  ","zadanie realizowane w obrębie jednego skrzyżowania (przejścia dla pieszych i przejazdy dla rowerów)"]
[null,"L.p.","KATEGORIA",null,null,"NR DROGI",null,null,"POWIAT ",null,null,null,"GMINA",null,null,null,null,null,"MIEJSCOWOŚĆ"]
[null,1]
[null,2]
[null,3]
[null,4]
[null,"oraz "]
[null,"o numerze drogi/dróg",null,null,null,null,null,null,null,1,null,null,null,2,null,null,null,3,null,null,null,4]
["9.\n","INFORMACJA O DOPEŁNIENIU WYMOGÓW, JAKIE W ZWIĄZKU Z PLANOWANĄ REALIZACJĄ ZADANIA WYNIKAJĄ Z OBOWIĄZUJĄCYCH PRZEPISÓW PRAWA"]
[null,"Rodzaj dokumentu",null,null,null,null,null,null,null,null,null,null,"nr dokumentu / \nznak dokumentu \n(jeśli dotyczy)",null,null,null,null,null,null,null,"data dokumentu (wydania, zatwierdzenia lub opracowania)"]
[null,null,null,null,null,null,null,null,null,null,null,null,null,null,null,null,null,null,null,null,"dzień",null,"miesiąc",null,"rok"]
["1.","Prawomocna decyzja o pozwoleniu na budowę lub \nprawomocna decyzja o zezwoleniu na realizację inwestycji drogowej \nlub \nzgłoszenie robót budowlanych z potwierdzeniem/poświadczeniem o braku sprzeciwu"]
["2.","Kosztorys inwestorski"]
["3.","Zatwierdzony projekt stałej organizacji ruchu lub pismo organu uprawnionego do zatwierdzenia organizacji ruchu"]
["4.","Czy wnioskodawca posiada tytuł prawny do nieruchomości wskazanych w oświadczeniu o dysponowaniu nieruchomością na cele budowlane zgodnie z art. 3 Prawa budowlanego, tj. tytuł prawny wynikający z prawa własności, użytkowania wieczystego, zarządu, ograniczonego prawa rzeczowego albo stosunku zobowiązaniowego, przewidującego uprawnienia do wykonywania robót budowlanych, ponadto tytuł ten nie wynika z posiadania samoistnego/władania lub z mocy prawa na podst. art. 73 ustawy z dnia 13 października 1998 r. Przepisy wprowadzające ustawy reformujące administrację publiczną (dotyczy sytuacji gdy jst nie posiada decyzji potwierdzającej ten fakt)"]
["10.\n ","OPIS ZADANIA OBEJMUJĄCY STAN ISTNIEJĄCY ORAZ PROJEKTOWANY WRAZ Z UZASADNIENIEM REALIZACJI ZADANIA"]
[null,null,null,null,null,null,null,null,null,null,null,null,null,null,null,null,null,null,null,null,null,null,null,null,null,null,{"$f":"LEN(A63)","v":0},"z",1000]
["11. ","CHARAKTERYSTYKA ZADANIA WEDŁUG KRYTERIÓW OCENY MERYTORYCZNEJ"]
[null,"Kryterium nr 1",null,null,null,"-","Wpływ zadania na jakość życia mieszkańców "]
["A. ","Wpływ zadania na jakość życia mieszkańców"]
[null,null,null,null,null,null,null,null,null,null,null,null,null,null,null,null,null,null,null,null,null,null,null,null,null,null,{"$f":"LEN(A67)","v":0},"z",800]
["B. ","Lokalizacja zadania względem obiektów, w których prowadzona jest działalność o charakterze publicznym lub/i działalność gospodarcza (placówki oświatowe, handlowe, ochrony zdrowia, opiekuńcze, kultury, sportu, rekreacji i wypoczynku, urzędy, itp.)"]
["Lokalizacja zadania względem obiektów",null,null,null,null,"Obiekty"]
["do 100 m ",null,null,null,null,null,null,null,null,null,null,null,null,null,null,null,null,null,null,null,null,null,null,null,null,null,{"$f":"LEN(F70)","v":0},"z",400]
["do 200 m",null,null,null,null,null,null,null,null,null,null,null,null,null,null,null,null,null,null,null,null,null,null,null,null,null,{"$f":"LEN(F71)","v":0},"z",400]
["do 300 m",null,null,null,null,null,null,null,null,null,null,null,null,null,null,null,null,null,null,null,null,null,null,null,null,null,{"$f":"LEN(F72)","v":0},"z",400]
[null,"Kryterium nr 2",null,null,null,"-","Wpływ zadania na stan bezpieczeństwa ruchu drogowego niechronionych uczestników ruchu drogowego"]
["A. ","Rozwiązania zwiększające bezpieczeństwo uczestników ruchu"]
[null,null,null,null,null,null,null,null,null,null,null,null,"REMONT (istniejące)"]
[null,null,null,null,null,null,null,null,null,null,null,null,"ilość"]
["•  ","drogi dla pieszych",null,null,null,null,null,null,null,null,null,null,null,null,null,"km"]
["•  ","drogi dla pieszych i rowerów",null,null,null,null,null,null,null,null,null,null,null,null,null,"km"]
["•  ","drogi dla rowerów",null,null,null,null,null,null,null,null,null,null,null,null,null,"km"]
["•  ","przejścia dla pieszych",null,null,null,null,null,null,null,null,null,null,null,null,null,"szt."]
[null,null,"wraz z obszarem oddziaływania ",null,null,null,null,null,null,null,null,null,null,null,null,"km"]
["•  ","przejazdy dla rowerów",null,null,null,null,null,null,null,null,null,null,null,null,null,"szt."]
[null,null,"wraz z obszarem oddziaływania ",null,null,null,null,null,null,null,null,null,null,null,null,"km"]
["•  ","perony przystankowe",null,null,null,null,null,null,null,null,null,null,null,null,null,"szt."]
[null,null,"wraz z dojściami do tych peronów",null,null,null,null,null,null,null,null,null,null,null,null,"km"]
["ŁĄCZNIE",null,null,null,null,null,null,null,null,null,{"$f":"SUM(COUNTIF(K77:L80,\"tak\"),COUNTIF(K82,\"tak\"),COUNTIF(K84,\"tak\"))","v":0},null,{"$f":"SUMIF(P77:P85,\"km\",M77:O85)","v":0},null,null,"km"]
[null,null,null,null,null,null,null,null,null,null,null,null,{"$f":"SUMIF(P77:P85,\"szt.\",M77:O85)","v":0},null,null,"szt."]
["B. ","Ryzyko społeczne wypadków"]
["Zadanie zlokalizowane jest na drodze publicznej przebiegającej przez powiat o bardzo dużym lub dużym poziomie ryzyka społecznego:"]
[null,"•","wypadki ogółem, ofiary śmiertelne i ciężko ranne: klasa ryzyka D i E",null,null,null,null,null,null,null,null,null,null,null,null,null,null,null,null,null,null,null,{"$f":"IFERROR(VLOOKUP($D$9,DANE!$E$299:$O$311,2,FALSE),\"\")","v":""},null,{"$f":"IF(OR(W90=\"D\",W90=\"E\"),\"TAK\",IF(W90=\"\",\"\",\"NIE\"))","v":""}]
[null,"•","wypadki z udziałem pieszych: klasa ryzyka D i E",null,null,null,null,null,null,null,null,null,null,null,null,null,null,null,null,null,null,null,{"$f":"IFERROR(VLOOKUP($D$9,DANE!$E$299:$O$311,2,FALSE),\"\")","v":""},null,{"$f":"IF(OR(W91=\"D\",W91=\"E\"),\"TAK\",IF(W91=\"\",\"\",\"NIE\"))","v":""}]
[null,"•","wypadki spowodowane zbyt dużą prędkością: klasa ryzyka D i E ",null,null,null,null,null,null,null,null,null,null,null,null,null,null,null,null,null,null,null,{"$f":"IFERROR(VLOOKUP($D$9,DANE!$E$299:$O$311,2,FALSE),\"\")","v":""},null,{"$f":"IF(OR(W92=\"D\",W92=\"E\"),\"TAK\",IF(W92=\"\",\"\",\"NIE\"))","v":""}]
["C.\n\n","Realizacja projektu obejmuje, zgłoszenie określone w Programie Likwidacji Miejsc Niebezpiecznych na Drogach Lokalnych w województwie świętokrzyskim 2019 - 2023 Bezpieczni na 5+ [TAK/NIE]"]
[null,"•","Pozycja, pod którą zgłoszenie znajduje się w Programie Bezpieczni na 5+"]
["12. ","OSOBY UPOWAŻNIONE DO UDZIELANIA WYJAŚNIEŃ KOMISJI"]
["Lp.","imię i nazwisko",null,null,null,null,null,null,null,null,"nr telefonu",null,null,null,null,null,null,"e-mail"]
[1]
[2]
[3]
["13. ","OŚWIADCZENIE I ZOBOWIĄZANIE WNIOSKODAWCY (ustawowego zarządcy drogi)"]
["Wnioskodawca oświadcza, że: "]
["1)","do wniosku dołączone zostały załączniki:   "]
[null,"a)","kopia prawomocnej decyzji o pozwoleniu na budowę (jeśli posiada),\nlub"]
[null,null,"kopia prawomocnej decyzji o zezwoleniu na realizację inwestycji drogowej (jeśli posiada),\nlub"]
[null,null,"kopia zgłoszenia robót budowlanych z poświadczeniem braku podstaw do wniesienia sprzeciwu na zgłoszenie wykonania robót budowlanych potwierdzone zaświadczeniem organu administracji architektoniczno-budowlanej lub pieczęcią organu administracji architektoniczno-budowlanej (jeśli posiada),"]
[null,"*","w przypadku niezałączenia jednego z trzech wyżej wymienionych dokumentów beneficjent jest zobowiązany do potwierdzenia zapoznania się z oświadczeniem o uzupełnieniu dokumentacji znajdującym się poniżej (w części OŚWIADCZENIA)"]
[null,"b)","zgodna ze stanem faktycznym, czytelna mapa poglądowa z naniesioną skalą i z zaznaczonym miejscem realizacji wnioskowanego zadania jego lokalizacji w stosunku do istniejących obiektów użyteczności publicznej, innych instytucji i podmiotów (obligatoryjnie),"]
[null,"c)","kopia strony projektu stałej organizacji ruchu, z której wynika, że projekt jest zatwierdzony (obligatoryjnie) \n"]
[null,null,"lub \npismo organu uprawnionego do zatwierdzenia organizacji ruchu (obligatoryjnie),"]
[null,"d)","kopia kosztorysu inwestorskiego (obligatoryjnie),"]
[null,"e)","kopia zgody na odstępstwo od przepisów techniczno-budowlanych (jeśli dotyczy),"]
[null,"f)","dodatkowe załączniki (jeśli dotyczy),"]
["2)","dane i informacje zawarte we wniosku są prawidłowe i kompletne;"]
["3)","na dzień złożenia wniosku, zadanie obejmuje inwestycję wyłącznie na drodze publicznej, dla której wnioskodawca pełni rolę ustawowego zarządcy i która została zaliczona do kategorii dróg powiatowych lub gminnych;"]
["4)","zapewnione zostanie zabezpieczenie całości zadeklarowanego we wniosku wkładu własnego,"]
["5)","dopełnił bądź dopełni wszelkich wymogów wynikających z przepisów prawa uprawniających do realizacji zadania;"]
["OŚWIADCZENIA:"]
["   Oświadczenie o uzupełnieniu dokumentacji"]
[null,"Oświadczam, że dostarczę przynajmniej jednego z dokumentów: \n - kopia prawomocnej decyzji o pozwoleniu na budowę,\n - kopia prawomocnej decyzji o zezwoleniu na realizację inwestycji drogowej,\n - kopia zgłoszenia robót budowlanych z poświadczeniem braku podstaw do wniesienia sprzeciwu na zgłoszenie wykonania robót budowlanych potwierdzone zaświadczeniem organu administracji architektoniczno-budowlanej lub pieczęcią organu administracji architektoniczno-budowlane\n w terminie 30 dni od dnia opublikowania zatwierdzonej przez Prezesa Rady Ministrów listy przeznaczonych na dofinansowanie zadań mających na celu wyłącznie poprawę bezpieczeństwa niechronionych uczestników ruchu, polegających w szczególności na budowie, przebudowie lub remoncie dróg dla pieszych, dróg dla pieszych i rowerów, dróg dla rowerów, przejść dla pieszych, przejazdów dla rowerów, peronów przystankowych wraz z dojściami do tych peronów."]
["   Oświadczenie o przekazaniu danych o sieci dróg publicznych do GDDKiA"]
[null,"Oświadczam, że zgodnie z zapisami § 2.2 rozporządzenia Ministra Infrastruktury z dnia 16 lutego 2005 r. w sprawie trybu sporządzania informacji oraz gromadzenia i udostępniania danych o sieci dróg publicznych, obiektach mostowych, tunelach oraz promach (Dz.U. 2005 nr 67 poz. 583) sporządzono oraz przekazano do Generalnego Dyrektora Dróg Krajowych i Autostrad informacje dla celów statystycznych o sieci dróg publicznych. "]
["   Oświadczenie o zgodności z przepisami prawa i wytycznymi"]
[null,"Oświadczam, że realizacja zgłoszonego zadania odbędzie się z zachowaniem przepisów prawa budowlanego, w tym warunków techniczno-budowlanych dotyczących dróg, spełnienia parametrów technicznych wynikających z wytycznych projektowania infrastruktury dla pieszych oraz rowerów, odpowiedniego oznakowania i zastosowania urządzeń bezpieczeństwa i organizacji ruchu, w szczególności z:"]
[null,"•  ","ustawą z dnia 7 lipca 1994 r. prawo budowlane (tj. Dz.U. z 2021 r. poz. 2351 ze zm.)"]
[null,"•  ","rozporządzeniem Ministra Infrastruktury z dnia 24 czerwca 2022 r. w sprawie przepisów techniczno-budowlanych dotyczących dróg publicznych (tj. Dz. U. z 2022 r. poz. 1518)"]
[null,"•  ","ustawą z dnia 21 marca 1985 r. o drogach publicznych (tj. Dz. U. z 2022 r. poz. 1693 ze zm.)"]
[null,"•  ","wytycznymi projektowania infrastruktury dla pieszych. Część 3: Projektowanie przejść dla pieszych \n(WR-D-41-3),"]
[null,"•  ","wytycznymi projektowania infrastruktury dla pieszych. Część 4: Projektowanie oświetlenia przejść dla pieszych (WR-D-41-4);"]
[null,"•  ","wytycznymi projektowania infrastruktury dla rowerów. Część 1: Planowanie tras dla rowerów \n(WR-D-42-1)"]
[null,"•  ","wytycznymi projektowania infrastruktury dla rowerów. Część 2: Projektowanie dróg dla\nrowerów, dróg dla pieszych i rowerów oraz pasów i kontrapasów ruchu dla rowerów (WR-D-42-2)"]
[null,"•  ","wytycznymi projektowania infrastruktury dla rowerów. Część 3: Projektowanie przejazdów dla\nrowerów oraz infrastruktury dla rowerów na skrzyżowaniach i węzłach (WR-D-42-3)"]
[]
["Wnioskodawca zobowiązuję się do: "]
["•  ","przeprowadzenia postępowania o zamówienie publiczne zgodnie z obowiązującymi przepisami Prawa zamówień publicznych,   "]
[]
["Ja, niżej podpisana/y, oświadczam, że informacje zawarte we wniosku oraz przedłożonych załącznikach są zgodne z prawdą. Jestem świadomy odpowiedzialności karnej wynikającej z art. 271 Kodeksu Karnego, dotyczącego poświadczenia nieprawdy, co do okoliczności mającej znaczenie prawne."]
[]
["Podpisy i pieczątki osób upoważnionych z ramienia wnioskodawcy (wraz z podpisem Skarbnika/Głównego Księgowego) - ustawowy zarządca drogi"]

{"sheet":"DANE","index":2,"n_rows":311,"n_cols":15,"rows_kept":311,"cut":false,"hidden":true,"merged":[[186,3,188,3],[186,4,188,4],[186,6,186,8],[188,6,188,8],[294,5,294,7],[294,8,294,10],[294,11,294,13],[294,14,297,14],[295,4,297,4],[295,5,295,6],[295,7,297,7],[295,8,295,9],[295,10,297,10],[295,11,295,12],[295,13,297,13],[296,5,297,5],[296,6,297,6],[296,8,297,8],[296,9,297,9],[296,11,297,11],[296,12,297,12]]}
[null,"DANE DO WNIOSKU - proszę nic nie zmieniać w tym arkuszu"]
[]
[null,"KATEGORIA",null,"jednoroczne","wieloletnie",null,"Dzień","Miesiąc ","Rok","Kolumna1",null,"ROBOTY","R","BRP"]
[null,"gminna",null,2023,2024,null,1,"I",2000,2023,null,"REMONT","remont","budowa"]
[null,"powiatowa",null,2024,2025,null,2,"II",2001,2022,null,"BUDOWA / ROZBUDOWA / PRZEBUDOWA",null,"rozbudowa"]
[null,"bez kategorii",null,null,2026,null,3,"III",2002,2021,null,null,null,"przebudowa"]
[null,"TAK","TAK",null,2027,null,4,"IV",2003,2020]
[null,"NIE","NIE",null,2028,null,5,"V",2004,2019]
[null,null,"NIE DOTYCZY",null,2029,null,6,"VI",2005,2018,null,null,null,"jednej drogi publicznej odchodzącej od tego skrzyżowania (kontynuacja od skrzyżowania)"]
[null,null,null,null,2030,null,7,"VII",2006,2017,null,null,null,"dwóch dróg publicznych odchodzących od tego skrzyżowania (kontynuacja od skrzyżowania)"]
[null,null,null,null,null,null,8,"VIII",2007,2016,null,null,null,"trzech dróg publicznych odchodzących od tego skrzyżowania (kontynuacja od skrzyżowania)"]
[null,"Klasa drogi",null,"budowa",null,null,9,"IX",2008,2015,null,null,null,"czterech dróg publicznych odchodzących od tego skrzyżowania (kontynuacja od skrzyżowania)"]
[null,"D",null,"rozbudowa",null,null,10,"X",2009,2014]
[null,"L",null,"przebudowa",null,null,11,"XI",2010,2013]
[null,"Z",null,"remont",null,null,12,"XII",2011,2012]
[null,"G",null,null,null,null,13,null,2012,2011]
[null,"GP",null,"stycznia","styczeń",null,14,null,2013,2010]
[null,null,null,"lutego","luty",null,15,null,2014,2009]
[null,"Peryferyjność",null,"marca","marzec",null,16,null,2015,2008]
[null,"mniejszy niż 30 minut",null,"kwietnia","kwiecień",null,17,null,2016,2007]
[null,"w przedziale od 30 do 50 minut",null,"maja","maj",null,18,null,2017,2006]
[null,"większy niż 50 minut",null,"czerwca","czerwiec",null,19,null,2018,2005]
[null,null,null,"lipca","lipiec",null,20,null,2019,2004]
[null,null,null,"sierpnia","sierpień",null,21,null,2020,2003]
[null,"w całości",null,"września","wrzesień",null,22,null,2021,2002]
[null,"w części",null,"października","październik",null,23,null,2022,2001]
[null,null,null,"listopada","listopad",null,24,null,2023,2000]
[null,null,null,"grudnia","grudzień",null,25]
[null,null,null,null,null,null,26]
[null,null,null,null,null,null,27]
[null,"bezpośredni dojazd do:",null,null,null,null,28]
[null,"pośredni dojazd do:",null,null,null,null,29]
[null,"bezpośredni i pośredni dojazd do:",null,null,null,null,30]
[null,null,null,null,null,null,31]
[]
[]
[null,"POWIAT","Buski","Jędrzejowski","Kazimierski","Kielecki","Konecki","Opatowski","Ostrowiecki","Pińczowski","Sandomierski","Skarżyski","Starachowicki","Staszowski","Włoszczowski"]
[null,"Buski","Busko-Zdrój","Imielno","Bejsce","Bieliny","Fałków","Baćkowice","Bałtów","Działoszyce","Dwikozy","Bliżyn","Brody","Bogoria","Kluczewsko"]
[null,"Jędrzejowski","Gnojno","Jędrzejów","Czarnocin","Bodzentyn","Gowarczów","Iwaniska","Bodzechów","Kije","Klimontów","Łączna","Mirzec","Łubnice","Krasocin"]
[null,"Kazimierski","Nowy Korczyn","Małogoszcz","Kazimierza Wielka","Chęciny","Końskie","Lipnik","Ćmielów","Michałów","Koprzywnica","Skarżysko-Kamienna","Pawłów","Oleśnica","Moskorzew"]
[null,"Kielecki","Pacanów","Nagłowice","Opatowiec","Chmielnik","Radoszyce","Opatów","Kunów","Pińczów","Łoniów","Skarżysko-Kościelne","Starachowice","Osiek","Radków"]
[null,"Konecki","Solec-Zdrój","Oksa","Skalbmierz","Daleszyce","Ruda Maleniecka","Ożarów","Ostrowiec Świętokrzyski","Złota","Obrazów","Suchedniów","Wąchock","Połaniec","Secemin"]
[null,"Opatowski","Stopnica","Sędziszów",null,"Górno","Słupia Konecka","Sadowie","Waśniów",null,"Samborzec",null,null,"Rytwiany","Włoszczowa"]
[null,"Ostrowiecki","Tuczępy","Słupia Jędrzejowska",null,"Kielce","Smyków","Tarłów",null,null,"Sandomierz",null,null,"Staszów"]
[null,"Pińczowski","Wiślica","Sobków",null,"Łagów","Stąporków","Wojciechowice",null,null,"Wilczyce",null,null,"Szydłów"]
[null,"Sandomierski",null,"Wodzisław",null,"Łopuszno",null,null,null,null,"Zawichost"]
[null,"Skarżyski",null,null,null,"Masłów"]
[null,"Starachowicki",null,null,null,"Miedziana Góra"]
[null,"Staszowski",null,null,null,"Mniów"]
[null,"Włoszczowski",null,null,null,"Morawica"]
[null,null,null,null,null,"Nowa Słupia"]
[null,null,null,null,null,"Nowiny"]
[null,null,null,null,null,"Piekoszów"]
[null,null,null,null,null,"Pierzchnica"]
[null,null,null,null,null,"Raków"]
[null,null,null,null,null,"Strawczyn"]
[null,null,null,null,null,"Zagnańsk"]
[]
[]
[]
[]
[]
[]
[]
[]
[]
[]
[null,"POWIAT / GMINA",null,null,null,"TERC / TERYT",null,null,null,"%"]
[null,null,null,"POWIATY","JST","Teryt","Dochód RAZEM","Dochód na mieszkańca","Dochód art. 14 ","%",null,null,null,"peryferyjność"]
[{"$f":"CONCATENATE(D70&C70)","v":"buski"},"buski26",null,"buski","powiat buski",2601,26527448.859999999,377.48596721404789,1.0140010148759659,0.7]
["jędrzejowski","jędrzejowski26",null,"jędrzejowski","powiat jędrzejowski",2602,30304747.239999998,360.6763376258599,0.9688470675970553,0.8]
["kazimierski","kazimierski26",null,"kazimierski","powiat kazimierski",2603,12632130.98,382.75705178317122,1.0281601772470466,0.7]
["kielecki","kielecki26",null,"kielecki","powiat kielecki",2604,84572327.859999999,401.42170598342523,1.0782970828413008,0.7]
["konecki","konecki26",null,"konecki","powiat konecki",2605,35525321.600000001,455.21939518195796,1.2228081804269806,0.7]
["opatowski","opatowski26",null,"opatowski","powiat opatowski",2606,27570873.530000001,542.31738488168537,1.4567703872898941,0.7]
["ostrowiecki","ostrowiecki26",null,"ostrowiecki","powiat ostrowiecki",2607,41427817.049999997,390.01531759256642,1.047657296441395,0.7]
["pińczowski","pińczowski26",null,"pińczowski","powiat pińczowski",2608,14419486.039999999,379.12094546984275,1.0183928857126798,0.7]
["sandomierski","sandomierski26",null,"sandomierski","powiat sandomierski",2609,24736611.120000001,327.67195358448578,0.88019084771078648,0.8]
["skarżyski","skarżyski26",null,"skarżyski","powiat skarżyski",2610,36163336.399999999,502.5756906998721,1.3500164368565566,0.7]
["starachowicki","starachowicki26",null,"starachowicki","powiat starachowicki",2611,29351667.399999999,335.60488228770049,0.90150024317087563,0.8]
["staszowski","staszowski26",null,"staszowski","powiat staszowski",2612,24700606.039999999,349.47588449185753,0.93876046350745446,0.8]
["włoszczowski","włoszczowski26",null,"włoszczowski","powiat włoszczowski",2613,16639741.800000001,374.64239108409322,1.0063626141615465,0.7]
[{"$f":"CONCATENATE(C83&D83)","v":"buskiBusko-Zdrój"},"Busko-Zdrój26","buski","Busko-Zdrój","gmina Busko-Zdrój",2601013,63580725.509999998,2007.7912498815801,0.87552396592476556,0.8]
["buskiGnojno","Gnojno26","buski","Gnojno","gmina Gnojno",2601022,8897521.2100000009,2074.497833993938,0.90461225539648726,0.7]
["buskiNowy Korczyn","Nowy Korczyn26","buski","Nowy Korczyn","gmina Nowy Korczyn",2601033,12108930,2115.0969432314409,0.92231603467868506,0.7]
["buskiPacanów","Pacanów26","buski","Pacanów","gmina Pacanów",2601043,14638013.49,2049.2809029819405,0.89361607865282555,0.8]
["buskiSolec-Zdrój","Solec-Zdrój26","buski","Solec-Zdrój","gmina Solec-Zdrój",2601052,10418213.92,2094.5343626859672,0.91334944909869387,0.7]
["buskiStopnica","Stopnica26","buski","Stopnica","gmina Stopnica",2601063,15268337.92,2037.9522050186865,0.88867604986739435,0.8]
["buskiTuczępy","Tuczępy26","buski","Tuczępy","gmina Tuczępy",2601072,8615500.5999999996,2363.0007131102575,1.0304177567998485,0.7]
["buskiWiślica","Wiślica26","buski","Wiślica","gmina Wiślica",2601083,11040242.559999999,2068.2357736980139,0.90188160106901638,0.7]
["jędrzejowskiImielno","Imielno26","jędrzejowski","Imielno","gmina Imielno",2602012,8677560.620000001,2045.6295662423388,0.89202386490880647,0.8]
["jędrzejowskiJędrzejów","Jędrzejów26","jędrzejowski","Jędrzejów","gmina Jędrzejów",2602023,53788849,1963.0966788321168,0.85603430627870403,0.8]
["jędrzejowskiMałogoszcz","Małogoszcz26","jędrzejowski","Małogoszcz","gmina Małogoszcz",2602033,25738618.700000003,2255.9925234464022,0.98375541846838399,0.7]
["jędrzejowskiNagłowice","Nagłowice26","jędrzejowski","Nagłowice","gmina Nagłowice",2602042,9964278.4499999993,2056.6106191950462,0.89681229848313904,0.8]
["jędrzejowskiOksa","Oksa26","jędrzejowski","Oksa","gmina Oksa",2602052,9139214,2037.7288740245262,0.88857866342956993,0.8]
["jędrzejowskiSędziszów","Sędziszów26","jędrzejowski","Sędziszów","gmina Sędziszów",2602063,25356628.900000002,2080.8000082061385,0.90736040192842382,0.7]
["jędrzejowskiSłupia Jędrzejowska","Słupia Jędrzejowska26","jędrzejowski","Słupia Jędrzejowska","gmina Słupia Jędrzejowska",2602072,8760890.3200000003,2074.5655505564764,0.90464178410042795,0.7]
["jędrzejowskiSobków","Sobków26","jędrzejowski","Sobków","gmina Sobków",2602082,17782214.119999997,2109.8972615092543,0.92004864459855396,0.7]
["jędrzejowskiWodzisław","Wodzisław26","jędrzejowski","Wodzisław","gmina Wodzisław",2602093,14324445.239999998,2105.2976543209875,0.9180429249663935,0.7]
["kazimierskiBejsce","Bejsce26","kazimierski","Bejsce","gmina Bejsce",2603012,7735098.3599999994,1957.2617307692306,0.85348989989717183,0.8]
["kazimierskiCzarnocin","Czarnocin26","kazimierski","Czarnocin","gmina Czarnocin",2603022,7319231.5,1980.84749661705,0.86377478546765818,0.8]
["kazimierskiKazimierza Wielka","Kazimierza Wielka26","kazimierski","Kazimierza Wielka","gmina Kazimierza Wielka",2603033,30062052.75,1893.6726141732283,0.82576102342404856,0.8]
["kazimierskiOpatowiec","Opatowiec26","kazimierski","Opatowiec","gmina Opatowiec",2603043,6567769.0600000005,2066.6359534298304,0.90118397825287477,0.7]
["kazimierskiSkalbmierz","Skalbmierz26","kazimierski","Skalbmierz","gmina Skalbmierz",2603053,12672744.469999999,2010.5893177851815,0.87674410049205798,0.8]
["kieleckiBieliny","Bieliny26","kielecki","Bieliny","gmina Bieliny",2604012,18608181.219999999,1816.8503436828744,0.79226165493390954,0.8]
["kieleckiBodzentyn","Bodzentyn26","kielecki","Bodzentyn","gmina Bodzentyn",2604023,23777222.059999999,2099.1632435772931,0.9153679339167774,0.7]
["kieleckiChęciny","Chęciny26","kielecki","Chęciny","gmina Chęciny",2604033,29194079.59,1955.0043253197616,0.85250552835359839,0.8]
["kieleckiChmielnik","Chmielnik26","kielecki","Chmielnik","gmina Chmielnik",2604043,22865005.800000001,2064.7467762326169,0.90036017751555375,0.7]
["kieleckiDaleszyce","Daleszyce26","kielecki","Daleszyce","gmina Daleszyce",2604053,37218233.740000002,2356.0317617269102,1.0273788532515613,0.7]
["kieleckiGórno","Górno26","kielecki","Górno","gmina Górno",2604062,27147844.700000003,1844.5335439597773,0.80433328105408175,0.8]
["kieleckiKielce","Kielce26","kielecki","Kielce","gmina Kielce",{"$error":"#N/A"},{"$error":"#N/A"},{"$error":"#N/A"},{"$error":"#N/A"},{"$error":"#N/A"}]
["kieleckiŁagów","Łagów26","kielecki","Łagów","gmina Łagów",2604073,14851261,2206.7252600297179,0.96227177575434208,0.7]
["kieleckiŁopuszno","Łopuszno26","kielecki","Łopuszno","gmina Łopuszno",2604082,18256657.75,2057.0881971830986,0.89702055268992609,0.8]
["kieleckiMasłów","Masłów26","kielecki","Masłów","gmina Masłów",2604092,22549586.280000001,2001.2057401490949,0.87265226718668121,0.8]
[{"$f":"CONCATENATE(C115&D115)","v":"kieleckiMiedziana Góra"},"Miedziana Góra26","kielecki","Miedziana Góra","gmina Miedziana Góra",2604102,22463608.099999998,1905.3102714164545,0.8308357779954032,0.8]
["kieleckiMniów","Mniów26","kielecki","Mniów","gmina Mniów",2604112,17944258.449999999,1936.7791095520777,0.84455818164128538,0.8]
["kieleckiMorawica","Morawica26","kielecki","Morawica","gmina Morawica",2604123,40273851.359999999,2356.2983477650364,1.0274951016241818,0.7]
["kieleckiNowa Słupia","Nowa Słupia26","kielecki","Nowa Słupia","gmina Nowa Słupia",2604133,17293774.66,1874.2575766771431,0.81729483918893286,0.8]
["kieleckiNowiny","Nowiny26","kielecki","Nowiny","gmina Nowiny",2604172,36911130,4604.681886227545,2.007932521416083,0.7]
["kieleckiPiekoszów","Piekoszów26","kielecki","Piekoszów","gmina Piekoszów",2604142,33187491.919999998,2011.8508680892337,0.8772942162102545,0.8]
["kieleckiPierzchnica","Pierzchnica26","kielecki","Pierzchnica","gmina Pierzchnica",2604153,9747609.0099999998,2119.5061991737334,0.92423874912900494,0.7]
["kieleckiRaków","Raków26","kielecki","Raków","gmina Raków",2604162,11649365.459999999,2133.1927229445155,0.93020693908511987,0.7]
["kieleckiStrawczyn","Strawczyn26","kielecki","Strawczyn","gmina Strawczyn",2604182,21410228.039999999,1943.3809603340292,0.84743700611041217,0.8]
["kieleckiZagnańsk","Zagnańsk26","kielecki","Zagnańsk","gmina Zagnańsk",2604192,24278223.649999999,1903.4279615836926,0.83001497186330353,0.8]
["koneckiFałków","Fałków26","konecki","Fałków","gmina Fałków",2605012,9165752.4600000009,2148.0554159831267,0.93668801322779027,0.7]
["koneckiGowarczów","Gowarczów26","konecki","Gowarczów","gmina Gowarczów",2605022,9353469.9499999993,2058.8751815980627,0.89779979091109441,0.8]
["koneckiKońskie","Końskie26","konecki","Końskie","gmina Końskie",2605033,69857581.609999999,2028.3261696814843,0.88447848967030906,0.8]
["koneckiRadoszyce","Radoszyce26","konecki","Radoszyce","gmina Radoszyce",2605043,17893637.120000001,2069.5856025907938,0.9024702118349992,0.7]
["koneckiRuda Maleniecka","Ruda Maleniecka26","konecki","Ruda Maleniecka","gmina Ruda Maleniecka",2605052,8712234.0999999996,2913.7906688963208,1.270597011744695,0.7]
["koneckiSłupia Konecka","Słupia Konecka26","konecki","Słupia Konecka","gmina Słupia Konecka",2605062,6875806.8799999999,2136.6708763206962,0.93172363392985935,0.7]
["koneckiSmyków","Smyków26","konecki","Smyków","gmina Smyków",2605072,7571048.7400000002,2021.102172984517,0.88132837023516886,0.8]
["koneckiStąporków","Stąporków26","konecki","Stąporków","gmina Stąporków",2605083,33691151.649999999,2081.1138211131015,0.90749724420267863,0.7]
["opatowskiBaćkowice","Baćkowice26","opatowski","Baćkowice","gmina Baćkowice",2606012,10887025.92,2267.1857392753018,0.98863636847478931,0.7]
["opatowskiIwaniska","Iwaniska26","opatowski","Iwaniska","gmina Iwaniska",2606022,12870223.870000001,2001.2787855698959,0.87268411960984327,0.8]
["opatowskiLipnik","Lipnik26","opatowski","Lipnik","gmina Lipnik",2606032,10218875.010000002,2020.7385821633384,0.88116982164215607,0.8]
["opatowskiOpatów","Opatów26","opatowski","Opatów","gmina Opatów",2606043,22618442.800000001,1993.3412179430686,0.8692228381201238,0.8]
["opatowskiOżarów","Ożarów26","opatowski","Ożarów","gmina Ożarów",2606053,38264204.350000001,3659.8952032520328,1.5959457754431579,0.7]
["opatowskiSadowie","Sadowie26","opatowski","Sadowie","gmina Sadowie",2606062,8242427.9299999997,2153.7569715181603,0.93917425203088656,0.7]
["opatowskiTarłów","Tarłów26","opatowski","Tarłów","gmina Tarłów",2606072,10455472.68,2104.5637439613524,0.9177228936340831,0.7]
["opatowskiWojciechowice","Wojciechowice26","opatowski","Wojciechowice","gmina Wojciechowice",2606082,8461568.2800000012,2141.0850910931176,0.93364851074373234,0.7]
["ostrowieckiBałtów","Bałtów26","ostrowiecki","Bałtów","gmina Bałtów",2607022,6902396.0599999996,2078.4089310448658,0.90631774106455509,0.7]
["ostrowieckiBodzechów","Bodzechów26","ostrowiecki","Bodzechów","gmina Bodzechów",2607032,24502147.420000002,1867.9688511092477,0.81455255711646091,0.8]
["ostrowieckiĆmielów","Ćmielów26","ostrowiecki","Ćmielów","gmina Ćmielów",2607043,15572461.17,2163.1422655924434,0.9432668338118716,0.7]
["ostrowieckiKunów","Kunów26","ostrowiecki","Kunów","gmina Kunów",2607053,15192831.32,1573.4083802816901,0.68610556261998623,0.8]
["ostrowieckiOstrowiec Świętokrzyski","Ostrowiec Świętokrzyski26","ostrowiecki","Ostrowiec Świętokrzyski","gmina Ostrowiec Świętokrzyski",2607011,132384003,1998.0078330163906,0.87125777742802257,0.8]
["ostrowieckiWaśniów","Waśniów26","ostrowiecki","Waśniów","gmina Waśniów",2607062,13178873.6,1975.8431184407796,0.86159256008534613,0.8]
[{"$f":"CONCATENATE(C147&D147)","v":"pińczowskiDziałoszyce"},"Działoszyce26","pińczowski","Działoszyce","gmina Działoszyce",2608013,9997554.8999999985,2106.9662592202317,0.91877054223190058,0.7]
["pińczowskiKije","Kije26","pińczowski","Kije","gmina Kije",2608022,12908967.84,3014.7052405418031,1.3146021472346832,0.7]
["pińczowskiMichałów","Michałów26","pińczowski","Michałów","gmina Michałów",2608032,9359123.8000000007,2098.4582511210765,0.91506051261924448,0.7]
["pińczowskiPińczów","Pińczów26","pińczowski","Pińczów","gmina Pińczów",2608043,43987158,2180.2804460966545,0.95074016440072961,0.7]
["pińczowskiZłota","Złota26","pińczowski","Złota","gmina Złota",2608052,8755118.8000000007,2002.5431838975298,0.87323547724644224,0.8]
["sandomierskiDwikozy","Dwikozy26","sandomierski","Dwikozy","gmina Dwikozy",2609022,15871374.800000001,1850.4575958960011,0.80691654235968446,0.8]
["sandomierskiKlimontów","Klimontów26","sandomierski","Klimontów","gmina Klimontów",2609033,15423593.140000001,1960.0448773668827,0.8547035278313857,0.8]
["sandomierskiKoprzywnica","Koprzywnica26","sandomierski","Koprzywnica","gmina Koprzywnica",2609043,12119962.84,1869.2108019740901,0.81509412623961297,0.8]
["sandomierskiŁoniów","Łoniów26","sandomierski","Łoniów","gmina Łoniów",2609052,14494426.640000001,1963.4823408290438,0.85620247930021509,0.8]
["sandomierskiObrazów","Obrazów26","sandomierski","Obrazów","gmina Obrazów",2609062,12373955.24,1956.6659139784947,0.85323008609450668,0.8]
["sandomierskiSamborzec","Samborzec26","sandomierski","Samborzec","gmina Samborzec",2609072,15517280.959999999,1863.2662055715657,0.8125019062473865,0.8]
["sandomierskiSandomierz","Sandomierz26","sandomierski","Sandomierz","gmina Sandomierz",2609011,50401168.159999996,2224.8242323651452,0.9701640723460373,0.7]
["sandomierskiWilczyce","Wilczyce26","sandomierski","Wilczyce","gmina Wilczyce",2609082,7340948.8799999999,2046.5427599665459,0.8924220751266877,0.8]
["sandomierskiZawichost","Zawichost26","sandomierski","Zawichost","gmina Zawichost",2609093,8720961.9699999988,2034.2808420807089,0.88707510343434415,0.8]
["skarżyskiBliżyn","Bliżyn26","skarżyski","Bliżyn","gmina Bliżyn",2610022,15825855.32,1992.6788365650971,0.86893399794760562,0.8]
["skarżyskiŁączna","Łączna26","skarżyski","Łączna","gmina Łączna",2610032,10478000.34,2159.9670871985159,0.94188225522077851,0.7]
["skarżyskiSkarżysko-Kamienna","Skarżysko-Kamienna26","skarżyski","Skarżysko-Kamienna","gmina Skarżysko-Kamienna",2610011,87323051.5,2011.032460503892,0.87693733874358393,0.8]
["skarżyskiSkarżysko-Kościelne","Skarżysko-Kościelne26","skarżyski","Skarżysko-Kościelne","gmina Skarżysko-Kościelne",2610042,11085725.359999999,1893.0541939890709,0.82549135311232003,0.8]
["skarżyskiSuchedniów","Suchedniów26","skarżyski","Suchedniów","gmina Suchedniów",2610053,18581496.649999999,1879.76698533131,0.81969728979981238,0.8]
["starachowickiBrody","Brody26","starachowicki","Brody","gmina Brody",2611022,21502670,2023.780705882353,0.88249637998006225,0.8]
["starachowickiMirzec","Mirzec26","starachowicki","Mirzec","gmina Mirzec",2611032,16004737.620000001,1961.6052972177965,0.85538396957375329,0.8]
["starachowickiPawłów","Pawłów26","starachowicki","Pawłów","gmina Pawłów",2611042,28155229.280000001,1861.0105942230155,0.81151831704527988,0.8]
["starachowickiStarachowice","Starachowice26","starachowicki","Starachowice","gmina Starachowice",2611011,95266694.629999995,2032.1827391795898,0.88616019787679956,0.8]
["starachowickiWąchock","Wąchock26","starachowicki","Wąchock","gmina Wąchock",2611053,13296961.83,1994.4445522723863,0.86970396166710717,0.8]
["staszowskiBogoria","Bogoria26","staszowski","Bogoria","gmina Bogoria",2612012,16746370.92,2196.5334365162644,0.9578274961296398,0.7]
["staszowskiŁubnice","Łubnice26","staszowski","Łubnice","gmina Łubnice",2612022,8231249.5899999999,2027.900859817689,0.88429302767134921,0.8]
["staszowskiOleśnica","Oleśnica26","staszowski","Oleśnica","gmina Oleśnica",2612033,7437441.5499999998,1942.3978976234002,0.8470083285956489,0.8]
["staszowskiOsiek","Osiek26","staszowski","Osiek","gmina Osiek",2612043,16400607.84,2156.8395370857443,0.94051844557247788,0.7]
["staszowskiPołaniec","Połaniec26","staszowski","Połaniec","gmina Połaniec",2612053,37518216.899999999,3256.5069785608885,1.4200429975474123,0.7]
["staszowskiRytwiany","Rytwiany26","staszowski","Rytwiany","gmina Rytwiany",2612062,13619897.310000001,2152.6627643432907,0.93869710850048138,0.7]
["staszowskiStaszów","Staszów26","staszowski","Staszów","gmina Staszów",2612073,48571952,1927.4584126984128,0.84049376833388378,0.8]
["staszowskiSzydłów","Szydłów26","staszowski","Szydłów","gmina Szydłów",2612083,9659978.6999999993,2139.5301661129565,0.93297046511253112,0.7]
[{"$f":"CONCATENATE(C179&D179)","v":"włoszczowskiKluczewsko"},"Kluczewsko26","włoszczowski","Kluczewsko","gmina Kluczewsko",2613012,10772689.649999999,2106.9215040093877,0.91875102612946902,0.7]
["włoszczowskiKrasocin","Krasocin26","włoszczowski","Krasocin","gmina Krasocin",2613022,23663009.540000003,2235.3116890232386,0.97473726671885852,0.7]
["włoszczowskiMoskorzew","Moskorzew26","włoszczowski","Moskorzew","gmina Moskorzew",2613032,5570298.2300000004,2141.5987043444829,0.93387247860434197,0.7]
["włoszczowskiRadków","Radków26","włoszczowski","Radków","gmina Radków",2613042,5298057,2154.5575437169582,0.93952335214104099,0.7]
["włoszczowskiSecemin","Secemin26","włoszczowski","Secemin","gmina Secemin",2613052,10046615.48,2148.5490761334477,0.93690328027442848,0.7]
["włoszczowskiWłoszczowa","Włoszczowa26","włoszczowski","Włoszczowa","gmina Włoszczowa",2613063,40761971,2147.6275553213909,0.93650143891960547,0.7]
[]
[]
[null,null,null,null,"Gmina",null,"Dostępność czasowa"]
[null,null,null,null,null,"Dostępność czasowa","do 30 minut","< 30 minut do 50 minut","> 50 minut"]
[null,null,null,null,null,null,"Liczba przyznanych punktów"]
[null,null,null,null,2,null,3,4,5,"peryjeryjność"]
[null,null,{"$f":"_xlfn.CONCAT(D191,\" \",E191)","v":"gmina Baćkowice"},"gmina","Baćkowice","35-40",null,1,null,{"$f":"G191+H191+I191","v":1},{"$f":"IF(J191=0,\"mniejszy niż 30 minut\",IF(J191=1,\"w przedziale od 30 do 50 minut\",\"większy niż 50 minut\"))","v":"w przedziale od 30 do 50 minut"}]
[null,null,{"$f":"_xlfn.CONCAT(D192,\" \",E192)","v":"gmina Bałtów"},"gmina","Bałtów","60-65",null,null,2,{"$f":"G192+H192+I192","v":2},{"$f":"IF(J192=0,\"mniejszy niż 30 minut\",IF(J192=1,\"w przedziale od 30 do 50 minut\",\"większy niż 50 minut\"))","v":"większy niż 50 minut"}]
[null,null,"gmina Bejsce","gmina","Bejsce","45-50",null,1,null,1,"w przedziale od 30 do 50 minut"]
[null,null,"gmina Bieliny","gmina","Bieliny","35-40",null,1,null,1,"w przedziale od 30 do 50 minut"]
[null,null,"gmina Bliżyn","gmina","Bliżyn","30-35",null,1,null,1,"w przedziale od 30 do 50 minut"]
[null,null,"gmina Bodzechów","gmina","Bodzechów","50-55",null,null,2,2,"większy niż 50 minut"]
[null,null,"gmina Bodzentyn","gmina","Bodzentyn","35-40",null,1,null,1,"w przedziale od 30 do 50 minut"]
[null,null,"gmina Bogoria","gmina","Bogoria","40-45",null,1,null,1,"w przedziale od 30 do 50 minut"]
[null,null,"gmina Brody","gmina","Brody","45-50",null,1,null,1,"w przedziale od 30 do 50 minut"]
[null,null,"gmina Busko Zdrój","gmina","Busko Zdrój","35-40",null,1,null,1,"w przedziale od 30 do 50 minut"]
[null,null,"gmina Chęciny","gmina","Chęciny","20-30",0,null,null,0,"mniejszy niż 30 minut"]
[null,null,"gmina Chmielnik","gmina","Chmielnik","30-35",null,1,null,1,"w przedziale od 30 do 50 minut"]
[null,null,"gmina Czarnocin","gmina","Czarnocin","50-55",null,null,2,2,"większy niż 50 minut"]
[null,null,"gmina Ćmielów","gmina","Ćmielów","50-55",null,null,2,2,"większy niż 50 minut"]
[null,null,"gmina Daleszyce","gmina","Daleszyce","30-35",null,1,null,1,"w przedziale od 30 do 50 minut"]
[null,null,"gmina Dwikozy","gmina","Dwikozy","45-50",null,1,null,1,"w przedziale od 30 do 50 minut"]
[null,null,"gmina Działoszyce","gmina","Działoszyce","45-50",null,1,null,1,"w przedziale od 30 do 50 minut"]
[null,null,"gmina Fałków","gmina","Fałków","45-50",null,1,null,1,"w przedziale od 30 do 50 minut"]
[null,null,"gmina Gnojno","gmina","Gnojno","40-45",null,1,null,1,"w przedziale od 30 do 50 minut"]
[null,null,"gmina Gowarczów","gmina","Gowarczów","45-50",null,1,null,1,"w przedziale od 30 do 50 minut"]
[null,null,"gmina Górno","gmina","Górno","20-30",0,null,null,0,"mniejszy niż 30 minut"]
[null,null,"gmina Imielno","gmina","Imielno","35-40",null,1,null,1,"w przedziale od 30 do 50 minut"]
[null,null,"gmina Iwaniska","gmina","Iwaniska","35-40",null,1,null,1,"w przedziale od 30 do 50 minut"]
[null,null,"gmina Jędrzejów","gmina","Jędrzejów","30-35",null,1,null,1,"w przedziale od 30 do 50 minut"]
[null,null,"gmina Kazimierza Wlk.","gmina","Kazimierza Wlk.","45-50",null,1,null,1,"w przedziale od 30 do 50 minut"]
[null,null,"gmina Kielce","gmina","Kielce"]
[null,null,"gmina Kije","gmina","Kije","30-35",null,1,null,1,"w przedziale od 30 do 50 minut"]
[null,null,"gmina Klimontów","gmina","Klimontów","40-45",null,1,null,1,"w przedziale od 30 do 50 minut"]
[null,null,"gmina Kluczewsko","gmina","Kluczewsko","45-50",null,1,null,1,"w przedziale od 30 do 50 minut"]
[null,null,"gmina Końskie","gmina","Końskie","35-40",null,1,null,1,"w przedziale od 30 do 50 minut"]
[null,null,"gmina Koprzywnica","gmina","Koprzywnica","40-45",null,1,null,1,"w przedziale od 30 do 50 minut"]
[null,null,"gmina Krasocin","gmina","Krasocin","40-45",null,1,null,1,"w przedziale od 30 do 50 minut"]
[null,null,"gmina Kunów","gmina","Kunów","50-55",null,null,2,2,"większy niż 50 minut"]
[null,null,"gmina Lipnik","gmina","Lipnik","40-45",null,1,null,1,"w przedziale od 30 do 50 minut"]
[null,null,"gmina Łagów","gmina","Łagów","35-40",null,1,null,1,"w przedziale od 30 do 50 minut"]
[null,null,"gmina Łączna","gmina","Łączna","20-30",0,null,null,0,"mniejszy niż 30 minut"]
[null,null,"gmina Łoniów","gmina","Łoniów","40-45",null,1,null,1,"w przedziale od 30 do 50 minut"]
[null,null,"gmina Łopuszno","gmina","Łopuszno","35-40",null,1,null,1,"w przedziale od 30 do 50 minut"]
[null,null,"gmina Łubnice","gmina","Łubnice","55-60",null,null,2,2,"większy niż 50 minut"]
[null,null,"gmina Małogoszcz","gmina","Małogoszcz","35-40",null,1,null,1,"w przedziale od 30 do 50 minut"]
[null,null,"gmina Masłów","gmina","Masłów","20-30",0,null,null,0,"mniejszy niż 30 minut"]
[null,null,"gmina Michałów","gmina","Michałów","40-45",null,1,null,1,"w przedziale od 30 do 50 minut"]
[null,null,"gmina Miedziana Góra","gmina","Miedziana Góra","20-30",0,null,null,0,"mniejszy niż 30 minut"]
[null,null,"gmina Mirzec","gmina","Mirzec","40-45",null,1,null,1,"w przedziale od 30 do 50 minut"]
[null,null,"gmina Mniów","gmina","Mniów","30-35",null,1,null,1,"w przedziale od 30 do 50 minut"]
[null,null,"gmina Morawica","gmina","Morawica","20-30",0,null,null,0,"mniejszy niż 30 minut"]
[null,null,"gmina Moskorzew","gmina","Moskorzew","50-55",null,null,2,2,"większy niż 50 minut"]
[null,null,"gmina Nagłowice","gmina","Nagłowice","40-45",null,1,null,1,"w przedziale od 30 do 50 minut"]
[null,null,"gmina Nowa Słupia","gmina","Nowa Słupia","40-45",null,1,null,1,"w przedziale od 30 do 50 minut"]
[null,null,"gmina Nowy Korczyn","gmina","Nowy Korczyn","50-55",null,null,2,2,"większy niż 50 minut"]
[null,null,"gmina Obrazów","gmina","Obrazów","40-45",null,1,null,1,"w przedziale od 30 do 50 minut"]
[null,null,"gmina Oksa","gmina","Oksa","40-45",null,1,null,1,"w przedziale od 30 do 50 minut"]
[null,null,"gmina Oleśnica","gmina","Oleśnica","50-55",null,null,2,2,"większy niż 50 minut"]
[null,null,"gmina Opatowiec","gmina","Opatowiec","50-55",null,null,2,2,"większy niż 50 minut"]
[null,null,"gmina Opatów","gmina","Opatów","35-40",null,1,null,1,"w przedziale od 30 do 50 minut"]
[null,null,"gmina Osiek","gmina","Osiek","45-50",null,1,null,1,"w przedziale od 30 do 50 minut"]
[null,null,"gmina Ostrowiec Św.","gmina","Ostrowiec Św.","45-50",null,1,null,1,"w przedziale od 30 do 50 minut"]
[null,null,"gmina Ożarów","gmina","Ożarów","50-55",null,null,2,2,"większy niż 50 minut"]
[null,null,"gmina Pacanów","gmina","Pacanów","50-55",null,null,2,2,"większy niż 50 minut"]
[null,null,"gmina Pawłów","gmina","Pawłów","40-45",null,1,null,1,"w przedziale od 30 do 50 minut"]
[null,null,"gmina Piekoszów","gmina","Piekoszów","20-30",0,null,null,0,"mniejszy niż 30 minut"]
[null,null,"gmina Pierzchnica","gmina","Pierzchnica","30-35",null,1,null,1,"w przedziale od 30 do 50 minut"]
[null,null,"gmina Pińczów","gmina","Pińczów","40-45",null,1,null,1,"w przedziale od 30 do 50 minut"]
[null,null,"gmina Połaniec","gmina","Połaniec","50-55",null,null,2,2,"większy niż 50 minut"]
[null,null,"gmina Radków","gmina","Radków","45-50",null,1,null,1,"w przedziale od 30 do 50 minut"]
[null,null,{"$f":"_xlfn.CONCAT(D256,\" \",E256)","v":"gmina Radoszyce"},"gmina","Radoszyce","35-40",null,1,null,{"$f":"G256+H256+I256","v":1},{"$f":"IF(J256=0,\"mniejszy niż 30 minut\",IF(J256=1,\"w przedziale od 30 do 50 minut\",\"większy niż 50 minut\"))","v":"w przedziale od 30 do 50 minut"}]
[null,null,"gmina Raków","gmina","Raków","35-40",null,1,null,1,"w przedziale od 30 do 50 minut"]
[null,null,"gmina Ruda Maleniecka","gmina","Ruda Maleniecka","35-40",null,1,null,1,"w przedziale od 30 do 50 minut"]
[null,null,"gmina Rytwiany","gmina","Rytwiany","45-50",null,1,null,1,"w przedziale od 30 do 50 minut"]
[null,null,"gmina Sadowie","gmina","Sadowie","40-45",null,1,null,1,"w przedziale od 30 do 50 minut"]
[null,null,"gmina Samborzec","gmina","Samborzec","40-45",null,1,null,1,"w przedziale od 30 do 50 minut"]
[null,null,"gmina Sandomierz","gmina","Sandomierz","40-45",null,1,null,1,"w przedziale od 30 do 50 minut"]
[null,null,"gmina Secemin","gmina","Secemin","50-55",null,null,2,2,"większy niż 50 minut"]
[null,null,"gmina Sędziszów","gmina","Sędziszów","50-55",null,null,2,2,"większy niż 50 minut"]
[null,null,"gmina Sitkówka-Nowiny","gmina","Sitkówka-Nowiny","20-30",0,null,null,0,"mniejszy niż 30 minut"]
[null,null,"gmina Skalbmierz","gmina","Skalbmierz","45-50",null,1,null,1,"w przedziale od 30 do 50 minut"]
[null,null,"gmina Skarżysko Kościelne","gmina","Skarżysko Kościelne","40-45",null,1,null,1,"w przedziale od 30 do 50 minut"]
[null,null,"gmina Skarżysko-Kamienna","gmina","Skarżysko-Kamienna","30-35",null,1,null,1,"w przedziale od 30 do 50 minut"]
[null,null,"gmina Słupia (Jędrzejowska)","gmina","Słupia (Jędrzejowska)","50-55",null,null,2,2,"większy niż 50 minut"]
[null,null,"gmina Słupia (Konecka)","gmina","Słupia (Konecka)","40-45",null,1,null,1,"w przedziale od 30 do 50 minut"]
[null,null,"gmina Smyków","gmina","Smyków","30-35",null,1,null,1,"w przedziale od 30 do 50 minut"]
[null,null,"gmina Sobków","gmina","Sobków","20-30",0,null,null,0,"mniejszy niż 30 minut"]
[null,null,"gmina Solec -Zdrój","gmina","Solec -Zdrój","50-55",null,null,2,2,"większy niż 50 minut"]
[null,null,"gmina Starachowice","gmina","Starachowice","40-45",null,1,null,1,"w przedziale od 30 do 50 minut"]
[null,null,"gmina Staszów","gmina","Staszów","40-45",null,1,null,1,"w przedziale od 30 do 50 minut"]
[null,null,"gmina Stąporków","gmina","Stąporków","35-40",null,1,null,1,"w przedziale od 30 do 50 minut"]
[null,null,"gmina Stopnica ","gmina","Stopnica ","45-50",null,1,null,1,"w przedziale od 30 do 50 minut"]
[null,null,"gmina Strawczyn","gmina","Strawczyn","30-35",null,1,null,1,"w przedziale od 30 do 50 minut"]
[null,null,"gmina Suchedniów","gmina","Suchedniów","30-35",null,1,null,1,"w przedziale od 30 do 50 minut"]
[null,null,"gmina Szydłów","gmina","Szydłów","40-45",null,1,null,1,"w przedziale od 30 do 50 minut"]
[null,null,"gmina Tarłów","gmina","Tarłów","60-65",null,null,2,2,"większy niż 50 minut"]
[null,null,"gmina Tuczępy","gmina","Tuczępy","45-50",null,1,null,1,"w przedziale od 30 do 50 minut"]
[null,null,"gmina Waśniów","gmina","Waśniów","40-45",null,1,null,1,"w przedziale od 30 do 50 minut"]
[null,null,"gmina Wąchock","gmina","Wąchock","35-40",null,1,null,1,"w przedziale od 30 do 50 minut"]
[null,null,"gmina Wilczyce","gmina","Wilczyce","45-50",null,1,null,1,"w przedziale od 30 do 50 minut"]
[null,null,"gmina Wiślica","gmina","Wiślica","45-50",null,1,null,1,"w przedziale od 30 do 50 minut"]
[null,null,"gmina Włoszczowa","gmina","Włoszczowa","45-50",null,1,null,1,"w przedziale od 30 do 50 minut"]
[null,null,"gmina Wodzisław","gmina","Wodzisław","40-45",null,1,null,1,"w przedziale od 30 do 50 minut"]
[null,null,"gmina Wojciechowice","gmina","Wojciechowice","45-50",null,1,null,1,"w przedziale od 30 do 50 minut"]
[null,null,"gmina Zagnańsk","gmina","Zagnańsk","20-30",0,null,null,0,"mniejszy niż 30 minut"]
[null,null,"gmina Zawichost","gmina","Zawichost","50-55",null,null,2,2,"większy niż 50 minut"]
[null,null,"gmina Złota","gmina","Złota","50-55",null,null,2,2,"większy niż 50 minut"]
[]
[]
[null,null,null,null,null,"Kryterium - wypadki ogółem, ofiary śmiertelne i cięzko ranne - 3 pkt",null,null,"Kryterium - wypadki z udziałem pieszych - 3 pkt",null,null,"Kryterium - wypadki spowodowane zbyt dużą prędkością - 3 pkt",null,null,"Łączna liczba przyznanych punktów w kryterium 1"]
[null,null,null,null,"Nazwa","Ofiary śmiertelne i ciężko ranni",null,"Liczba przyznanych punktów","Ofiary śmiertelne i ciężko ranni",null,"Liczba przyznanych punktów","Ofiary śmiertelne i ciężko ranni",null,"Liczba przyznanych punktów"]
[null,null,null,null,null,"Klasa ryzyka","Poziom ryzyka",null,"Klasa ryzyka","Poziom ryzyka",null,"Klasa ryzyka","Poziom ryzyka"]
[]
[null,null,null,null,"buski","B","Małe",0,"B","Małe",0,"C","Średnie",0,{"$f":"H299+K299+N299","v":0}]
[null,null,null,null,"jędrzejowski","D","Duże",1,"C","Średnie",0,"D","Duże",1,{"$f":"H300+K300+N300","v":2}]
[null,null,null,null,"kazimierski","A","Bardzo małe",0,"A","Bardzo małe",0,"B","Małe",0,0]
[null,null,null,null,"kielecki","E","Bardzo duże",1,"E","Bardzo duże",1,"E","Bardzo duże",1,3]
[null,null,null,null,"konecki","D","Duże",1,"D","Duże",1,"C","Średnie",0,2]
[null,null,null,null,"opatowski","D","Duże",1,"D","Duże",1,"D","Duże",1,3]
[null,null,null,null,"ostrowiecki","B","Małe",0,"D","Duże",1,"A","Bardzo małe",0,1]
[null,null,null,null,"pińczowski","A","Bardzo małe",0,"B","Małe",0,"A","Bardzo małe",0,0]
[null,null,null,null,"sandomierski","D","Duże",1,"D","Duże",1,"C","Średnie",0,2]
[null,null,null,null,"skarżyski","A","Bardzo małe",0,"C","Średnie",0,"A","Bardzo małe",0,0]
[null,null,null,null,"starachowicki","A","Bardzo małe",0,"C","Średnie",0,"A","Bardzo małe",0,0]
[null,null,null,null,"staszowski","A","Bardzo małe",0,"A","Bardzo małe",0,"B","Małe",0,0]
[null,null,null,null,"włoszczowski","B","Małe",0,"A","Bardzo małe",0,"B","Małe",0,0]